Cogmind - Beta 15 @@@ ROGUE MODE // 2025.06.22 @ 13:24:44 Player: aoemica Result: Escaped singularity! Performance ------------- Evolutions (9) 4500 Regions Visited (26) 5200 Robots Destroyed (1425) 7125 Value Destroyed (94015) 94015 Prototype IDs (382) 7640 Alien Tech Used (8) 1600 Bonus (129948) 129948 TOTAL SCORE: 250028 Bonus ------- Triggered High Security 1000 High Alert Combat Kills 78338 Follower Combat Kills 1371 Network Hubs Disabled 400 Registered with UFD 300 Met Optimus in HQ 500 Met Zhirov 300 Built Enhanced Grunts 300 A7 Reached Mainframe 300 Met R17 at Cetus 500 Met R17 at Research 2000 Scanned by Researcher 500 Destroyed Superfortress 15000 Met Optimus at Protoforge 1000 Completed Drillbomb Mission10000 Destroyed MAIN.C Guards 500 Met MAIN.C 5000 Destroyed MAIN.C Shell 5000 Destroyed MAIN.C 10000 Met Architect 300 Destroyed A8 300 Destroyed A6 400 Destroyed Architect 15000 Win 3000 Friendly Fire -21361 Cogmind --------- Core Integrity 591/1600 Matter 228/300 Energy 98/100 System Corruption 3% Temperature Cool (0) Movement Core (50) Location Near Former Tau Ceti IV Parts ------- > --- POWER (2) -------- (None) > --- PROPULSION (6) --- (None) > --- UTILITY (10) ----- (None) > --- WEAPON (8) ------- (None) > --- INVENTORY (5) ---- Centrium Heavy Armor Plating Neutron Cannon Perforator Peak State ------------ > --- POWER ------------ Hybrid Graviton Reactor Hybrid Graviton Reactor > --- PROPULSION ------- Experimental Biometal Heavy Treads Experimental Heavy Siege Treads Experimental Heavy Siege Treads > --- UTILITY ---------- Concept Antigrav Storage Unit Experimental Optical Array Experimental Active Sensor Suite Experimental Targeting Computer Experimental Targeting Computer Concept Core Analysis Suite Centrium Medium Armor Plating Graphene Brace Experimental Force Field > --- WEAPON ----------- Concept Plasma Driver Overtuned Railgun Overtuned Railgun Perforator Concept Smart ZDS Sigix Broadsword > --- INVENTORY -------- 0bPrime Scrap Suit 0bPrime Scrap Suit 2N-1CE's Frost Array Concept Thermoelectric Network Concept Thermoelectric Network Concept NT7 Matterbank Concept NT7 Matterbank Makeshift Salvage Targeting Computer Concept Cloak Mesh Experimental Weapon Shielding Concept Antimissile System Concept Matter Streamer Transdimensional Reconstructor Overtuned Railgun Overtuned Railgun Overtuned Railgun Overtuned Railgun Overtuned Railgun Overtuned Railgun Overtuned Railgun Overtuned Railgun [Rating: 300] Favorites ----------- Power Hybrid Graviton Reactor Engine Subdweller Power Source Power Core Micro Fission Core Reactor Hybrid Graviton Reactor Propulsion Experimental Heavy Siege Treads Treads Experimental Heavy Siege Treads Leg Experimental Biometal Leg Wheel Wheel Flight Unit Cooled VTOL Module Utility Experimental Targeting Computer Device Concept Thermoelectric Network Storage Concept Antigrav Storage Unit Processor Experimental Targeting Computer Hackware Improved Hacking Suite Protection Centrium Medium Armor Plating Weapon Overtuned Railgun Energy Gun Heavy Quantum Rifle Energy Cannon Enhanced Nova Cannon Ballistic Gun Overtuned Railgun Ballistic Cannon Perforator Launcher Mini Smartbomb Launcher Special Weapon CPS Tube Slashing Weapon Sigix Broadsword Piercing Weapon Lance Build | -11 -10 -10 -7 -7 -5 -5 -5 -5 -5 -5 -4 -4 -4 -4 -4 -4 -4 -4 -3 -3 -2 -2 -2 -1 -1 -1 ------- Run | Yrd Mat Sub Rec Scr Fac Was Fac Upp Upp Zhi Pro Fac Was Fac Ext Cet Arc Hub Res Qua Res Tes Frg Acc Com Ac0 Slots Evolved 18 | . . . . . 10 . . . . . . 2 . . . . . . 2 . 2 . . 2 . . Power 1 | . . . . . . . . . . . . . . . . . . . 1 . . . . . . . Propulsion 3 | . . . . . 3 . . . . . . . . . . . . . . . . . . . . . Utility 8 | . . . . . 7 . . . . . . . . . . . . . . . 1 . . . . . Weapon 6 | . . . . . . . . . . . . 2 . . . . . . 1 . 1 . . 2 . . Parts Attached 233 | 1 1 17 4 6 30 . 15 1 2 . 1 5 . 7 . 2 1 . 10 3 . 3 57 19 38 10 Power 16 | . . 2 . 1 2 . 1 . . . . . . . . . . . 1 . . 1 6 . 1 1 Engine 4 | . . 2 . 1 1 . . . . . . . . . . . . . . . . . . . . . Core 5 | . . . . . 1 . 1 . . . . . . . . . . . 1 . . 1 1 . . . Reactor 7 | . . . . . . . . . . . . . . . . . . . . . . . 5 . 1 1 Propulsion 50 | . . 6 2 1 7 . 3 . 1 . . 1 . 2 . . . . 4 1 . 1 9 2 6 4 Treads 9 | . . 4 . . . . . . . . . . . . . . . . . . . . 3 2 . . Leg 10 | . . . . . . . . . . . . . . . . . . . . . . . . . 6 4 Wheel 5 | . . 2 2 1 . . . . . . . . . . . . . . . . . . . . . . Hover . | . . . . . . . . . . . . . . . . . . . . . . . . . . . Flight 26 | . . . . . 7 . 3 . 1 . . 1 . 2 . . . . 4 1 . 1 6 . . . Utility 101 | 1 1 1 1 2 14 . 9 . 1 . 1 3 . 2 . 1 1 . 4 1 . 1 28 9 18 2 Device 50 | 1 . . . . 4 . 3 . 1 . 1 . . 1 . . 1 . 2 1 . . 14 7 12 2 Storage 9 | . 1 1 1 . . . . . . . . 1 . . . . . . 2 . . . 2 . 1 . Processor 22 | . . . . . 6 . 1 . . . . . . . . . . . . . . . 10 1 4 . Hackware 11 | . . . . 1 2 . 4 . . . . 2 . 1 . . . . . . . 1 . . . . Protection 9 | . . . . 1 2 . 1 . . . . . . . . 1 . . . . . . 2 1 1 . Artifact . | . . . . . . . . . . . . . . . . . . . . . . . . . . . Weapon 66 | . . 8 1 2 7 . 2 1 . . . 1 . 3 . 1 . . 1 1 . . 14 8 13 3 Energy Gun 12 | . . 3 . . . . . . . . . . . . . . . . . . . . 1 . 7 1 Energy Cannon 11 | . . 1 1 . . . 1 . . . . . . . . . . . . . . . 2 . 4 2 Ballistic Gun 23 | . . 4 . 1 3 . . . . . . 1 . 2 . 1 . . 1 . . . . 8 2 . Ballistic Cannon 3 | . . . . . . . . . . . . . . . . . . . . . . . 3 . . . Launcher 4 | . . . . . 2 . . 1 . . . . . . . . . . . . . . 1 . . . Special Weapon 8 | . . . . . 1 . . . . . . . . . . . . . . . . . 7 . . . Impact Weapon . | . . . . . . . . . . . . . . . . . . . . . . . . . . . Slashing Weapon 4 | . . . . 1 . . 1 . . . . . . 1 . . . . . 1 . . . . . . Piercing Weapon 1 | . . . . . 1 . . . . . . . . . . . . . . . . . . . . . Special Melee Weapon . | . . . . . . . . . . . . . . . . . . . . . . . . . . . Unidentified Prototypes 11 | . . . . . . . . . 1 1 . . . . . . . . . 2 . . 4 . 3 . Corrupted Parts 1 | . . . . 1 . . . . . . . . . . . . . . . . . . . . . . System Corruption 2 | . . . . 2 . . . . . . . . . . . . . . . . . . . . . . Parts Lost 34 | . . 7 . 1 6 . . . . . . . . . . . . . . . . . 8 . 1 11 Power 1 | . . . . . . . . . . . . . . . . . . . . . . . . . . 1 Propulsion 10 | . . 4 . 1 2 . . . . . . . . . . . . . . . . . 1 . . 2 Utility 13 | . . . . . 3 . . . . . . . . . . . . . . . . . 7 . 1 2 Weapon 10 | . . 3 . . 1 . . . . . . . . . . . . . . . . . . . . 6 Highest Loss Streak 5 | . . 2 . 1 2 . . . . . . . . . . . . . . . . . 2 . 1 5 To Critical Strikes 3 | . . . . . . . . . . . . . . . . . . . . . . . . . . 3 Average Backups 16 | 6 8 11 18 20 4 5 4 5 4 4 5 4 7 8 8 9 9 9 9 13 14 13 15 19 20 21 Power . | 1 1 1 1 1 1 1 1 1 1 1 1 1 1 1 . 1 1 1 1 2 2 1 . . . . Propulsion 1 | 4 6 4 3 3 . . . 1 . . . . 1 1 2 2 2 2 2 2 3 3 . . 1 4 Utility 8 | . . 2 8 8 1 2 2 2 2 2 2 2 3 4 4 4 4 4 4 5 5 4 8 10 11 6 Weapon 5 | 1 1 3 5 7 1 2 1 1 1 1 1 . 1 1 1 1 1 1 1 1 1 1 5 6 6 9 Tool/Special . | . . . . . . . . . . . . . . . . . . . . . . . . . . . Unused Backups 116 | . 3 4 1 5 8 . . . . . . . . 3 . . . . 2 1 . 1 54 3 15 16 Power 13 | . . 1 . . 1 . . . . . . . . . . . . . . . . . 9 1 . 1 Propulsion 19 | . . 3 . . . . . . . . . . . 2 . . . . 2 . . . 2 . 5 5 Utility 31 | . 2 . 1 2 3 . . . . . . . . 1 . . . . . . . . 11 1 5 5 Weapon 49 | . 1 . . 3 3 . . . . . . . . . . . . . . . . . 32 1 4 5 Tool/Special 4 | . . . . . 1 . . . . . . . . . . . . . . 1 . 1 . . 1 . Average Slot Usage (%) 84 | . 100 99 98 95 83 76 92 94 93 92 94 93 90 92 94 93 90 90 80 75 70 74 70 83 83 91 Engine 1 | . 14 14 14 14 2 . . . . . . . . . . . . . . . . . . . . . Core 1 | . . . . . 2 5 5 5 5 5 5 5 5 5 5 5 5 5 5 4 4 4 2 . . . Reactor 4 | . . . . . . . . . . . . . . . . . . . . . . . 3 7 7 6 Treads 7 | . . 22 . . . . . . . . . . . . . . . . . . . . 4 11 9 . Leg 1 | . 28 1 . . . . . . . . . . . . . . . . . . . . . . 2 19 Wheel 1 | . . 2 26 27 . . . . . . . . . . . . . . . . . . . . . . Flight 5 | . . . . . 19 11 21 23 26 27 27 25 25 25 24 25 25 25 22 22 20 20 11 . . . Device 14 | . 14 14 14 11 6 5 10 11 11 9 11 10 5 6 5 5 5 5 4 11 12 15 14 17 17 16 Storage 4 | . 14 14 14 14 . . . . . . . . 5 5 5 5 5 5 4 4 4 4 5 3 3 3 Processor 11 | . . . . . 24 29 24 23 22 22 22 20 20 20 20 20 20 20 17 13 12 12 13 11 10 11 Hackware 1 | . . . . . 8 11 11 11 11 11 11 10 10 10 10 10 10 10 9 9 8 8 . . . . Protection 1 | . . . . 2 3 . 4 5 4 5 5 4 5 3 5 5 4 5 3 . . . 1 . 1 2 Energy Gun 1 | . 14 3 9 . . . . . . . . . . . . . . . . . . . . . 1 18 Energy Cannon 2 | . . 9 4 10 . . 1 2 5 5 3 4 . . . . . . . . . . 1 . 1 11 Ballistic Gun 16 | . 14 15 14 11 3 . 3 . . . . 3 5 4 5 5 5 5 3 . . . . 29 25 . Slashing Weapon 1 | . . . . 1 4 5 . 5 5 5 5 5 5 7 10 8 5 5 4 4 4 4 3 . . . Peak Build Rating 300 | 7 8 14 18 22 80 69 93 90 95 95 98 114 108 124 124 124 122 122 138 155 146 160 291 300 285 284 Average Rating 199 | 6 7 11 15 17 67 69 85 89 93 94 95 110 106 117 123 123 121 122 127 140 146 156 221 271 268 275 On Entrance 108 | 6 7 8 12 18 22 69 69 89 89 94 95 96 106 108 124 124 122 122 122 125 146 146 160 289 271 279 Naked Turns 5 | . . . . . . . . . . . . . . . . . . . . . . . . . . 5 Heaviest Build 186 | 15 20 38 98 98 24 14 24 24 24 24 24 34 34 38 38 38 37 37 44 43 43 49 138 138 186 184 Greatest Support 285 | 20 20 40 30 20 33 17 33 33 34 34 38 40 34 46 46 39 39 39 52 43 43 52 285 285 260 184 Greatest Overweight (x) 9 | . . 1 4 9 1 . . . . . . . . . 1 . . . 1 . . 1 1 . 1 1 Average Overweight (x) . | . . . 3 4 . . . . . . . . . . . . . . . . . . . . . . Largest Inventory Capacity 25 | 8 10 15 25 25 25 5 5 5 5 5 5 10 10 10 10 10 10 10 15 15 15 15 25 25 25 25 Average Capacity 20 | 8 9 13 23 25 5 5 5 5 5 5 5 5 10 10 10 10 10 10 10 15 15 15 19 25 25 24 Most Carried 25 | 6 10 15 23 25 25 5 5 5 5 5 5 7 9 10 10 10 10 10 14 15 15 15 25 25 25 25 Average Carried 19 | 6 9 13 20 22 5 5 4 5 4 4 5 4 7 9 9 10 10 10 10 14 15 14 17 23 23 23 Final Capacity 25 | 8 10 15 25 25 5 5 5 5 5 5 5 10 10 10 10 10 10 10 15 15 15 15 25 25 25 5 Final Carried 25 | 6 10 13 23 25 5 5 5 5 4 5 5 7 9 10 10 10 10 10 12 15 15 15 25 25 25 5 Class Distribution -------------------- 45% | Scavenger-Scrapper 9% | Mutant 7% | Scavenger-Assassin 5% | Hacker-Ninja 5% | Scavenger-Executioner 5% | Scavenger-Mutant 5% | Hacker-Scout 4% | Scavenger-Sprinter 3% | Commander-Scout Dominant Class ---------------- Mutant | -10/Materials Mutant | -10/Subcaves Scavenger-Mutant | -7/Recycling Scavenger-Mutant | -7/Scraptown Scavenger-Scout | -5/Factory Hacker-Mutant | -5/Waste Hacker-Ninja | -5/Factory Hacker-Ninja | -5/Upper Caves Hacker-Ninja | -5/Upper Caves Hacker-Ninja | -5/Zhirov Hacker-Ninja | -4/Proximity Caves Hacker-Scout | -4/Factory Hacker-Scout | -4/Waste Hacker-Scout | -4/Factory Commander-Scout | -4/Extension Commander-Scout | -4/Cetus Commander-Scout | -4/Archives Commander-Scout | -4/Hub_04(d) Hacker-Scout | -3/Research Hacker-Ninja | -3/Quarantine Hacker-Ninja | -2/Research Hacker-Ninja | -2/Testing Scavenger-Assassin | -2/Protoforge Scavenger-Scrapper | -1/Access Scavenger-Scrapper | -1/Command Scavenger-Executioner | -1/Access_0 Resources | -11 -10 -10 -7 -7 -5 -5 -5 -5 -5 -5 -4 -4 -4 -4 -4 -4 -4 -4 -3 -3 -2 -2 -2 -1 -1 -1 ----------- Run | Yrd Mat Sub Rec Scr Fac Was Fac Upp Upp Zhi Pro Fac Was Fac Ext Cet Arc Hub Res Qua Res Tes Frg Acc Com Ac0 Matter Collected 134101 | 216 61 354 40 33 433 . 428 187 60 . 200 170 . 216 456 55 33 . 195 130 . 302 39537 34011 55673 1311 Remotely 61549 | . . . . . . . . . . . . . . . . . . . . . . . 20353 18280 22916 . Salvage Created 98442 | 10 127 577 13 . 845 . 718 281 . . 158 448 . 384 765 92 39 43 386 243 . 386 10400 30593 49592 2342 Parts 2999 | 3 10 24 4 . 41 . 36 7 . . 7 14 . 13 36 6 4 3 11 10 . 6 498 467 1673 126 Haulers Intercepted 16 | . 1 . . . 1 . 3 1 . . . 3 . 2 . . . . 2 . . . 1 2 . . Recyclers Shooed 6 | 1 2 . . . 1 . 1 . . . . . . . . . . . 1 . . . . . . . Parts Field Recycled . | . . . . . . . . . . . . . . . . . . . . . . . . . . . Retrieved Matter . | . . . . . . . . . . . . . . . . . . . . . . . . . . . Parts Self-Destructed 30 | . . 17 . . . . . 7 . . 6 . . . . . . . . . . . . . . . Prevented . | . . . . . . . . . . . . . . . . . . . . . . . . . . . Kills | -11 -10 -10 -7 -7 -5 -5 -5 -5 -5 -5 -4 -4 -4 -4 -4 -4 -4 -4 -3 -3 -2 -2 -2 -1 -1 -1 ------- Run | Yrd Mat Sub Rec Scr Fac Was Fac Upp Upp Zhi Pro Fac Was Fac Ext Cet Arc Hub Res Qua Res Tes Frg Acc Com Ac0 Combat Hostiles Destroyed 1261 | . 2 15 . . 8 . . 5 . . 4 . . 5 9 1 . . . 4 . . 347 292 544 25 Melee 14 | . . . . . 2 . . . . . . . . . 4 . . . . . . . 8 . . . Guns 851 | . 2 9 . . . . . . . . . . . . 1 1 . . . . . . . 292 544 2 Cannons 110 | . . 4 . . . . . . . . . . . . . . . . . . . . 86 . . 20 AOE 279 | . . . . . 6 . . 5 . . 4 . . 5 4 . . . . 4 . . 251 . . . Classes Destroyed 34 | 1 4 2 . . 4 . . . . . 1 . . . 3 . . . . 1 . 1 13 1 3 . Worker 21 | . . . . . 1 . . . . . . 1 . . . . . . . 1 . . . 9 9 . Builder 15 | . 1 . 1 . . . 2 . . . . . . . 2 . . . . . . . . 9 . . Tunneler 2 | 1 . . . . 1 . . . . . . . . . . . . . . . . . . . . . Hauler 16 | . 1 . . . 1 . 3 1 . . . 3 . 2 . . . . 2 . . . 1 2 . . Recycler 15 | . . . . . 4 . 2 . . . . 1 . 1 1 . . . 1 . . 2 . . 3 . Carrier 91 | . . . . . . . . . . . . . . . . . . . . . . . 2 66 23 . Minesweeper 2 | . . . . . . . . . . . 2 . . . . . . . . . . . . . . . Mechanic 49 | . . . . . . . . . . . . . . . . . . . . . . . 16 21 12 . Operator 13 | . . . . . 1 . 3 . . . . . . . 1 . 1 . . 1 . . . . 6 . Drone 11 | . . . . . . . . . . . . . . . . . . . . . . . 11 . . . Turret 2 | . . 2 . . . . . . . . . . . . . . . . . . . . . . . . Watcher 26 | . . . . . 4 . 1 . . . . . . . 1 1 . 1 2 1 . 1 . . 14 . Swarmer 114 | . 1 4 . . 8 . . . . . . . . 5 . . . . . . . . 43 . 53 . Cutter 16 | . . . . . . . . . . . . . . . . . . . . . . . . 4 12 . Saboteur 46 | . . . . . . . . . . . . . . . . . . . . . . . 4 19 23 . Grunt 324 | . 1 4 . . . . . 5 . . 4 . . . 3 . . . . 3 . . 53 97 154 . Brawler 81 | . . . . . . . . . . . . . . . . . . . . 1 . . 20 23 37 . Duelist 70 | . . . . . . . . . . . . . . . 1 . . . . . . . 14 21 34 . Protector 62 | . . . . . . . . . . . . . . . . . . . . . . . 15 27 20 . Researcher 7 | . . . . . . . . . . . . . . . . . . . . . . 1 6 . . . Sentry 22 | . . . . . . . . . . . . . . . 4 . . . . . . . 8 2 8 . Demolisher 17 | . . . . . . . . . . . . . . . . . . . . . . . . . 17 . Specialist 25 | . . . . . . . . . . . . . . . . . . . . . . . . . 25 . Hunter 112 | . . . . . . . . . . . . . . . . . . . . . . . 40 13 59 . Programmer 118 | . . . . . . . . . . . . . . . . . . . . . . . 31 27 60 . Heavy 4 | . . . . . . . . . . . . . . . . . . . . . . . . 1 3 . Behemoth 6 | . . . . . . . . . . . . . . . 1 . . . . . . . . 1 4 . Cetus Guard 1 | . . . . . . . . . . . . . . . . 1 . . . . . . . . . . M Guard 2 | . . . . . . . . . . . . . . . . . . . . . . . . . 2 . Enhanced Grunt 14 | . . . . . . . . . . . . . . . . . . . . . . . . . . 14 Enhanced Sentry 1 | . . . . . . . . . . . . . . . . . . . . . . . . . . 1 Enhanced Hunter 7 | . . . . . . . . . . . . . . . . . . . . . . . . . . 7 Hotshot 2 | . . . . . . . . . . . . . . . . . . . . . . . 2 . . . Decapitator 12 | . . . . . . . . . . . . . . . . . . . . . . . 12 . . . Immortal 2 | . . . . . . . . . . . . . . . . . . . . . . . 2 . . . Combat Programmer 2 | . . . . . . . . . . . . . . . . . . . . . . . . . 2 . Investigator 5 | . . . . . . . . . . . . . . . . . . . . . . . . 4 1 . Striker 76 | . . . . . . . . . . . . . . . . . . . . . . . 38 26 12 . Executioner 100 | . . . . . . . . . . . . . . . . . . . . . . . 54 31 15 . Alpha 7 2 | . . . . . . . . . . . . . . . . . . . . . . . . . 2 . Subdweller 7 | . . 7 . . . . . . . . . . . . . . . . . . . . . . . . Scrapper 1 | . . . . . . . . . . . . . . . . . . . . . . . 1 . . . Scrapoid 27 | . . . . . . . . . . . . . . . . . . . . . . . 27 . . . Scraphulk 11 | . . . . . . . . . . . . . . . . . . . . . . . 11 . . . Best Kill Streak 65 | 1 2 4 1 . 7 . 1 4 . . 2 3 . 5 3 1 1 1 2 4 . 2 32 40 65 4 Combat Bots Only 65 | . 1 2 . . 4 . . 3 . . 2 . . 5 3 1 . . . 4 . . 31 31 65 4 Max Kills in Single Turn 10 | 1 1 1 1 . 3 . 1 2 . . 2 1 . 3 2 1 1 1 1 2 . 1 8 10 9 2 Gunslinging 4 | . . . . . . . . . . . . . . . . . . . . . . . . 3 4 . Exploded 7 | . . . . . 3 . . 2 . . 2 . . 3 2 . . . . 2 . . 7 . . . Melee 1 | . . . . . 1 . . . . . . . . . 1 . . . . . . . 1 . . . Uniques/NPCs Destroyed 5 | . . . . . . . . . . . . . . . . . . . . . . . . . 2 3 MAIN.C Shell (-1/Command) MAIN.C (-1/Command) A8 (-1/Access_0) A6 (-1/Access_0) Architect (-1/Access_0) Combat | -11 -10 -10 -7 -7 -5 -5 -5 -5 -5 -5 -4 -4 -4 -4 -4 -4 -4 -4 -3 -3 -2 -2 -2 -1 -1 -1 -------- Run | Yrd Mat Sub Rec Scr Fac Was Fac Upp Upp Zhi Pro Fac Was Fac Ext Cet Arc Hub Res Qua Res Tes Frg Acc Com Ac0 Hostile Shots Fired 1491 | . 4 124 . . 64 . 10 . . . 5 4 . 18 7 . . . 9 2 . 23 232 151 355 483 Missed 441 | . . 36 . . 27 . 6 . . . 4 1 . 12 4 . . . 7 . . 10 102 14 70 148 Intercepted 6 | . . . . . . . . . . . . . . . . . . . . . . . . . 6 . Deflected 5 | . . . . . . . . . . . . . . . . . . . . . . . . . . 5 Hits 1050 | . 4 88 . . 37 . 4 . . . 1 3 . 6 3 . . . 2 2 . 13 130 137 285 335 Melee 16 | . . . . . . . . . . . . . . . . . . . . . . . 9 . . 7 Projectile 1034 | . 4 88 . . 37 . 4 . . . 1 3 . 6 3 . . . 2 2 . 13 121 137 285 328 AOE 22 | . . 1 . . . . . . . . . . . . . . . . . . . . 7 3 11 . Critical Strikes 71 | . . 2 . . . . . . . . . . . . . . . . . . . 1 12 10 14 32 Actively Blocked 32 | . . . . . . . . . . . . . . . . . . . . . . 1 12 10 9 . Part Disruptions 9 | . . . . . . . . . . . . . . . . . . . . . . . . . 3 6 Damage Taken 17293 | . 44 1379 . 64 743 . 134 . . . 16 58 . 171 66 25 . . 68 40 . 357 3385 1881 3794 5068 Core 1609 | . 12 196 . . 165 . 38 . . . 16 . . 19 . . . . . . . 23 289 142 79 630 Absorbed by Shields 11201 | . . . . . . . . . . . . . . . . . . . . . . . 715 1869 3696 4921 Reduced by Siege Mode 746 | . . . . . . . . . . . . . . . . . . . . . . . . 326 420 . Redirected to Shielding 342 | . . . . . . . . . . . . . . . . . . . . . . . . . 342 . Regen/Repaired (Parts) 4580 | . . . . . . . 48 . . . . . . 119 22 . . . 169 67 . 112 1962 74 1618 389 Core Remaining (%) 69 | 100 . . . 16 . . . . . . 78 . . . . . . 98 . 100 . . 61 . . 36 Volleys Fired 1940 | 3 16 85 19 . 17 . 21 11 6 . 29 5 . 17 20 7 . . 1 9 . 12 309 489 750 114 Largest 8 | 2 2 2 1 . 1 . 1 1 1 . 1 1 . 1 1 1 . . 1 1 . 1 2 8 8 8 Hottest 845 | 70 70 90 65 . 39 . 35 80 35 . 80 80 . 80 80 35 . . 38 80 . 80 240 320 805 845 Shots Fired 10487 | 6 32 130 19 . 17 . 22 11 6 . 29 5 . 16 20 7 . . 1 9 . 12 311 3539 5588 707 Gun 9738 | 6 32 107 2 . 12 . 15 . . . . . . 4 12 7 . . 1 . . 11 22 3532 5571 404 Cannon 538 | . . 23 17 . . . 6 6 6 . 22 4 . 8 . . . . . 4 . . 115 7 17 303 Launcher 198 | . . . . . 5 . 1 5 . . 7 1 . 4 8 . . . . 5 . 1 161 . . . Special 13 | . . . . . . . . . . . . . . . . . . . . . . . 13 . . . Kinetic 9394 | 3 16 87 . . 12 . 15 . . . . . . 4 12 7 . . 1 . . 11 110 3532 5563 21 Thermal 860 | 3 16 43 19 . . . 6 6 6 . 22 4 . 8 . . . . . 4 . . 5 7 25 686 Explosive 198 | . . . . . 5 . 1 5 . . 7 1 . 4 8 . . . . 5 . 1 161 . . . Electromagnetic 22 | . . . . . . . . . . . . . . . . . . . . . . . 22 . . . Robot Hit Streak 63 | 2 5 11 3 . 1 . . . . . . . . 3 4 4 . . . . . . 19 53 63 20 Robot Miss Streak 9 | 1 3 3 1 . . . . . . . . . . . 1 3 . . 2 . . . 9 4 8 8 Penetration Max 2 | . . . . . . . . . . . . . . . 1 . . . . . . . 2 2 2 1 Secondary Targets 284 | . . 1 . . . . . . . . . . . . . . . . . . . . . 143 140 . Max Gunslinging Chain 3 | . . 1 . . . . . . . . . . . . . . . . . . . . . 3 3 . Shots Hit Robots 5035 | 4 19 82 2 . 22 . 20 1 . . 2 6 . 13 22 5 3 1 9 6 . 8 249 1859 2245 457 Core Hits 3622 | 1 9 21 1 . 29 . 11 15 . . 10 5 . 7 20 5 1 . 5 14 . 5 587 1032 1619 225 Critical Kills 376 | . . 3 . . . . . . . . . . . . . 1 . . . . . . 90 119 147 16 Critical Parts Destroyed 376 | . . 1 . . . . . . . . . . . . 2 . . . . . . . 78 113 167 15 Critical Strikes 831 | . . 4 . . 3 . 1 . . . . . . 1 3 1 . . . . . . 190 241 351 36 Meltdown 3 | . . 2 . . . . . . . . . . . . . . . . . . . . . . . 1 Destroy 822 | . . 2 . . . . . . . . . . . . 2 1 . . . . . . 190 241 351 35 Sever 6 | . . . . . 3 . 1 . . . . . . 1 1 . . . . . . . . . . . Melee Attacks 490 | . . . . . 66 . 79 2 8 . 18 25 . 41 24 19 3 1 24 21 4 28 127 . . . Impact . | . . . . . . . . . . . . . . . . . . . . . . . . . . . Slashing 429 | . . . . . 66 . 18 2 8 . 18 25 . 41 24 19 3 1 24 21 4 28 127 . . . Piercing 61 | . . . . . . . 61 . . . . . . . . . . . . . . . . . . . Sneak Attacks 152 | . . . . . 7 . 14 . . . 2 5 . 4 8 . 3 1 3 1 . 2 102 . . . Combat Hostiles 5 | . . . . . . . . . . . . . . . 5 . . . . . . . . . . . Follow-up Attacks 4 | . . . . . . . . . . . . . . 1 2 1 . . . . . . . . . . Damage Inflicted 307975 | 47 267 1547 46 . 1727 . 1370 863 . . 1194 633 . 1417 2592 186 377 118 687 1283 . 915 114736 60045 101344 16581 Guns 172031 | 47 267 999 20 . . . . . . . . . . . 295 134 . . . . . 54 422 60045 101333 8415 Cannons 10482 | . . 548 26 . . . . . . . . . . . . . . . . . . . 1742 . . 8166 Explosions 100125 | . . . . . 735 . . 803 . . 936 93 . 582 997 . . . . 776 . 43 95160 . . . Melee 25326 | . . . . . 992 . 1370 60 . . 258 540 . 835 1300 52 377 118 687 507 . 818 17412 . . . Ramming 11 | . . . . . . . . . . . . . . . . . . . . . . . . . 11 . Kinetic 164552 | 10 129 826 . . . . . . . . . . . . 295 134 . . . . . 54 1498 60045 101333 228 Thermal 17539 | 37 138 721 46 . . . . . . . . . . . . . . . . . . . 244 . . 16353 Explosive 99968 | . . . . . 578 . . 803 . . 936 93 . 582 997 . . . . 776 . 43 95160 . . . Electromagnetic 579 | . . . . . 157 . . . . . . . . . . . . . . . . . 422 . . . Impact . | . . . . . . . . . . . . . . . . . . . . . . . . . . . Slashing 24391 | . . . . . 992 . 435 60 . . 258 540 . 835 1300 52 377 118 687 507 . 818 17412 . . . Piercing 935 | . . . . . . . 935 . . . . . . . . . . . . . . . . . . . Highest Corruption 8 | . . . . 2 . 8 8 1 1 . . . 7 7 4 4 4 . . . . . 5 3 8 3 Average Corruption 3 | . . . . 2 . 8 7 1 1 . . . 7 5 4 4 3 . . . . . 4 2 1 2 Corruption Purged 37 | . . . . . . . 8 . 1 . . . . 3 . . 4 . . . . . . 3 18 . Corruption Blocked . | . . . . . . . . . . . . . . . . . . . . . . . . . . . Effects 470 | . . . . 3 . . 30 . 1 . . . . 25 22 5 2 . . . . . 212 42 109 19 Message Errors 119 | . . . . 1 . . 11 . 1 . . . . 6 5 1 . . . . . . 59 12 17 6 Matter Fused 108 | . . . . 1 . . 9 . . . . . . 3 3 1 2 . . . . . 57 4 26 2 Heat Flow Errors 55 | . . . . . . . 5 . . . . . . 3 5 1 . . . . . . 32 3 6 . Energy Discharges 56 | . . . . 1 . . 2 . . . . . . 4 2 1 . . . . . . 25 3 16 2 Parts Rejected 2 | . . . . . . . . . . . . . . 1 . . . . . . . . 1 . . . Parts Fused 5 | . . . . . . . . . . . . . . 2 . . . . . . . . 2 . 1 . Data Loss (minor) 43 | . . . . . . . 1 . . . . . . 2 3 . . . . . . . 17 6 10 4 Data Loss (major) 21 | . . . . . . . . . . . . . . 2 . . . . . . . . 12 2 4 1 Misfires 14 | . . . . . . . 1 . . . . . . . 1 . . . . . . . . 5 7 . Alerts 15 | . . . . . . . 1 . . . . . . 1 2 1 . . . . . . 5 . 5 . Weapon Failures 32 | . . . . . . . . . . . . . . 1 1 . . . . . . . 2 7 17 4 Overload Shots . | . . . . . . . . . . . . . . . . . . . . . . . . . . . Overflow Damage 13250 | . . . 6 . 91 . 130 . . . 110 70 . 167 184 . 77 63 81 81 . 287 11887 . . 16 Projectiles 27 | . . . 6 . . . . . . . . . . . . . . . . . . . 5 . . 16 Explosions 10082 | . . . . . 7 . . . . . 26 . . 6 . . . . . 2 . . 10041 . . . Melee 3141 | . . . . . 84 . 130 . . . 84 70 . 161 184 . 77 63 81 79 . 287 1841 . . . Knockbacks 43 | . . . . . . . . . . . . . . . . . . . . . . . 35 . 1 7 Impact 1 | . . . . . . . . . . . . . . . . . . . . . . . . . 1 . Kinetic 40 | . . . . . . . . . . . . . . . . . . . . . . . 34 . . 6 Secondary 2 | . . . . . . . . . . . . . . . . . . . . . . . 1 . . 1 Self-Inflicted Damage 61 | . . . . . . . 61 . . . . . . . . . . . . . . . . . . . Shots 1 | . . . . . . . 1 . . . . . . . . . . . . . . . . . . . Rammed 1 | . . . . . . . . . . . . . . . . . . . . . . . . . 1 . Targets Rammed 1 | . . . . . . . . . . . . . . . . . . . . . . . . . 1 . Kicked . | . . . . . . . . . . . . . . . . . . . . . . . . . . . Crushed . | . . . . . . . . . . . . . . . . . . . . . . . . . . . Highest Temperature 276 | 27 54 36 84 . . . 245 63 . . 90 36 . 276 196 116 . . 85 62 . 169 220 223 223 203 Average Temperature 114 | 14 22 17 34 . . . 103 27 . . 28 18 . 65 58 59 . . 36 32 . 83 68 120 120 157 Received Heat Transfer 976 | . 18 462 . . 48 . 9 . . . 9 . . . 12 . . . 18 9 . . 186 80 113 12 Effects 12 | . . . . . . . . . . . . . . . . . . . . . . . . . 1 11 Energy Bleed 5 | . . . . . . . . . . . . . . . . . . . . . . . . . . 5 Interference 7 | . . . . . . . . . . . . . . . . . . . . . . . . . 1 6 Siege Activations 41 | . . . . . . . . . . . . . . . . . . . . . . . . 5 36 . Total Turns 9042 | . . . . . . . . . . . . . . . . . . . . . . . . 2875 6167 . Longest Duration 2354 | . . . . . . . . . . . . . . . . . . . . . . . . 2092 2354 . Martial Activations . | . . . . . . . . . . . . . . . . . . . . . . . . . . . Shielding Activations 1 | . . . . . . . . . . . . . . . . . . . . . . . . . . 1 Total Turns 24 | . . . . . . . . . . . . . . . . . . . . . . . . . . 24 Longest Duration 24 | . . . . . . . . . . . . . . . . . . . . . . . . . . 24 Robots Disrupted 1 | . . . . . . . . . . . . . . . . . . . . . . . 1 . . . Combat Hostiles 1 | . . . . . . . . . . . . . . . . . . . . . . . 1 . . . Robots Corrupted 2 | . . . . . . . . . . . . . . . . . . . . . . . 2 . . . Combat Hostiles 2 | . . . . . . . . . . . . . . . . . . . . . . . 2 . . . Parts Fried 4 | . . . . . . . . . . . . . . . 2 . . . . . . . 2 . . . Impact Corruptions . | . . . . . . . . . . . . . . . . . . . . . . . . . . . Robots Melted 5 | . . 2 . . . . . . . . . . . . . . . . . . . . . . . 3 Combat Hostiles 5 | . . 2 . . . . . . . . . . . . . . . . . . . . . . . 3 Parts Melted 28 | . 1 5 . . . . . . . . . . . . . . . . . . . . 2 1 . 19 Heat Transferred 8459 | 111 407 1026 62 . . . . . . . . . . . . . . . . . . . 150 . . 6703 Parts Sabotaged . | . . . . . . . . . . . . . . . . . . . . . . . . . . . Parts Stolen . | . . . . . . . . . . . . . . . . . . . . . . . . . . . Parts Stripped . | . . . . . . . . . . . . . . . . . . . . . . . . . . . Power Chain Reactions . | . . . . . . . . . . . . . . . . . . . . . . . . . . . Alert | -11 -10 -10 -7 -7 -5 -5 -5 -5 -5 -5 -4 -4 -4 -4 -4 -4 -4 -4 -3 -3 -2 -2 -2 -1 -1 -1 ------- Run | Yrd Mat Sub Rec Scr Fac Was Fac Upp Upp Zhi Pro Fac Was Fac Ext Cet Arc Hub Res Qua Res Tes Frg Acc Com Ac0 Maximum Alert Level 5 | . . . . . 2 . . . . . . . . . 1 1 1 . . . . 1 5 5 5 . Low Security (%) 17 | 100 100 . 100 . 43 100 100 . . . . 100 100 100 64 51 90 100 100 100 100 90 . . . . Level 1 3 | . . . . . 37 . . . . . . . . . 35 48 9 . . . . 9 5 . . . Level 2 2 | . . . . . 19 . . . . . . . . . . . . . . . . . 10 . . . Level 3 1 | . . . . . . . . . . . . . . . . . . . . . . . 6 . . . Level 4 1 | . . . . . . . . . . . . . . . . . . . . . . . 8 . . . Level 5 24 | . . . . . . . . . . . . . . . . . . . . . . . 68 10 21 . High Security 49 | . . . . . . . . . . . . . . . . . . . . . . . . 89 78 . Max Security . | . . . . . . . . . . . . . . . . . . . . . . . . . . . Sterilizations 1 | . . . . . . . . . . . . . . . . . . . . . . . . 1 . . Peak Influence 24313 | 5 30 . 118 . 476 154 152 . . . . 115 40 138 361 285 233 66 57 176 18 265 9253 14750 24313 . Initial 9440 | . . . 103 . . 154 100 . . . . 6 40 21 58 141 98 . . 15 . 4 148 5551 9440 . Average 9298 | 3 4 . 29 . 231 152 45 . . . . 10 37 19 177 207 75 22 11 71 3 70 2871 12263 16282 . Influence Increases 41751 | 5 62 355 57 . 1102 . 372 105 15 . 100 264 . 377 1009 404 225 78 194 288 27 505 9955 9533 15522 1197 Destroy 0b10 Robot/C 25460 | . 40 200 . . 200 . . 100 . . 80 . . 100 380 160 80 . . 80 . 20 6580 6700 10740 . Destroy 0b10 Robot/NC 1190 | 5 10 . 5 . 60 . 55 5 . . 10 25 . 15 35 10 5 5 25 15 . 15 215 340 335 . Destroy Leader 3584 | . 12 20 . . 30 . 8 . . . 10 6 . 14 24 . . 2 6 12 . 2 1060 1434 944 . Allied During Kill 557 | . . . . . . . . . . . . . . . 306 165 85 1 . . . . . . . . Successful Hack 511 | . . . . . 54 . 36 . . . . 18 . 68 36 . . 14 36 36 . 90 123 . . . Select Force Hacks 80 | . . . 30 . . . . . . . . . . . . . . 50 . . . . . . . . Disable Machine 1305 | . . . 15 . 165 . 45 . . . . 15 . . 30 15 45 . 15 60 . 75 420 45 300 60 Anti-Garrison Action 200 | . . . . . . . . . . . . . . . . . . . . . . . . 150 50 . Destroy Structure 5459 | . . . 7 . 128 . 138 . . . . 50 . 90 108 54 10 6 22 70 12 78 237 849 2463 1137 Partial Spotted 600 | . . . . . 150 . 60 . . . . 15 . 15 60 . . . 45 15 15 75 150 . . . Lose Combat Pursuer 2805 | . . 135 . . 315 . 30 . 15 . . 135 . 75 30 . . . 45 . . 150 1170 15 690 . Influence Decreases 40664 | 5 42 159 273 . 661 297 508 108 20 . 89 160 85 287 876 412 470 78 165 317 19 248 967 4036 5688 24694 Entered New Map 34601 | . . 10 113 . . 287 44 4 2 . . 5 75 9 62 112 147 . . 14 . 4 117 3702 5310 24584 Time Decay 4721 | 5 42 99 160 . 411 10 454 104 18 . 89 145 10 254 404 180 263 10 154 204 19 214 770 334 368 . Search Patrol Dispatched 150 | . . . . . 150 . . . . . . . . . . . . . . . . . . . . . Lost Part 310 | . . 50 . . 60 . . . . . . . . . . . . . . . . . 80 . 10 110 Lost Ally 468 | . . . . . 40 . 10 . . . . 10 . 20 110 120 60 68 . . . 30 . . . . Purge Threat 414 | . . . . . . . . . . . . . . 4 300 . . . 11 99 . . . . . . Squads Dispatched 204 | . 1 . . . 7 . 12 . . . . 11 . 13 1 . . 2 5 1 . 2 7 87 55 . Investigation 32 | . 1 . . . 3 . 7 . . . . 6 . 7 . . . 2 3 . . . 3 . . . Extermination 18 | . . . . . 3 . 4 . . . . 2 . 2 . . . . . 1 . 2 1 1 2 . Reinforcement 32 | . . . . . 1 . 1 . . . . 3 . 2 1 . . . 2 . . . 3 2 17 . Assault 122 | . . . . . . . . . . . . . . 2 . . . . . . . . . 84 36 . Garrison . | . . . . . . . . . . . . . . . . . . . . . . . . . . . Intercept . | . . . . . . . . . . . . . . . . . . . . . . . . . . . Searches Triggered 1 | . . . . . 1 . . . . . . . . . . . . . . . . . . . . . Construction Impeded 4 | . . . . . . . . . . . . . . 1 1 . . . . . . . . 2 . . Haulers Reinforced 2 | . . . . . . . . . . . . 1 . 1 . . . . . . . . . . . . Active Scanning Responses . | . . . . . . . . . . . . . . . . . . . . . . . . . . . Cargo Convoy Interrupts . | . . . . . . . . . . . . . . . . . . . . . . . . . . . Stealth | -11 -10 -10 -7 -7 -5 -5 -5 -5 -5 -5 -4 -4 -4 -4 -4 -4 -4 -4 -3 -3 -2 -2 -2 -1 -1 -1 --------- Run | Yrd Mat Sub Rec Scr Fac Was Fac Upp Upp Zhi Pro Fac Was Fac Ext Cet Arc Hub Res Qua Res Tes Frg Acc Com Ac0 Distress Signals 62 | . 3 . . . . . . . . . . . . 3 1 2 . 2 7 1 . 1 32 . 10 . Communications Jammed 4 | . . . . . . . . . . . . . . . . . . . . 1 . . 3 . . . Distress Signals 4 | . . . . . . . . . . . . . . . . . . . . 1 . . 3 . . . Times Spotted 1319 | . 8 21 . . 42 5 17 7 1 . 6 22 5 29 16 8 3 3 24 6 1 18 368 263 382 64 Peak Tracking Total 38 | . 5 4 . . 12 5 7 7 1 . 4 9 5 10 4 5 1 9 7 4 1 6 22 8 38 5 Tactical Retreats 93 | . . 4 . . 11 . 6 2 1 . 2 4 . 6 2 . . . 3 . . 4 34 1 13 . Traps | -11 -10 -10 -7 -7 -5 -5 -5 -5 -5 -5 -4 -4 -4 -4 -4 -4 -4 -4 -3 -3 -2 -2 -2 -1 -1 -1 ------- Run | Yrd Mat Sub Rec Scr Fac Was Fac Upp Upp Zhi Pro Fac Was Fac Ext Cet Arc Hub Res Qua Res Tes Frg Acc Com Ac0 Traps Triggered 40 | . 1 3 . 1 6 . 2 . . . . 1 . 2 3 . . . 1 2 . . 14 3 1 . Indirectly 4 | . . . . . 4 . . . . . . . . . . . . . . . . . . . . . Trap Hack Attempts . | . . . . . . . . . . . . . . . . . . . . . . . . . . . Triggered . | . . . . . . . . . . . . . . . . . . . . . . . . . . . Disarmed . | . . . . . . . . . . . . . . . . . . . . . . . . . . . Reprogrammed . | . . . . . . . . . . . . . . . . . . . . . . . . . . . Reused . | . . . . . . . . . . . . . . . . . . . . . . . . . . . Traps Extracted . | . . . . . . . . . . . . . . . . . . . . . . . . . . . Installed 1 | . . . . 1 . . . . . . . . . . . . . . . . . . . . . . Triggered . | . . . . . . . . . . . . . . . . . . . . . . . . . . . Most Traps Carried 1 | . . 1 1 1 1 . . . . . . . . . . . . . . . . . . . . . Machines | -11 -10 -10 -7 -7 -5 -5 -5 -5 -5 -5 -4 -4 -4 -4 -4 -4 -4 -4 -3 -3 -2 -2 -2 -1 -1 -1 ---------- Run | Yrd Mat Sub Rec Scr Fac Was Fac Upp Upp Zhi Pro Fac Was Fac Ext Cet Arc Hub Res Qua Res Tes Frg Acc Com Ac0 Machines Disabled 109 | . . 3 1 . 11 . 3 . . . . 1 . . 4 1 3 . 1 4 . 5 34 11 23 4 Max in Single Turn 6 | . . 1 1 . 6 . 1 . . . . 1 . . 2 1 . . 1 1 . 1 4 2 2 1 Garrison Access 13 | . . . . . . . 2 . . . . 2 . 2 . . . . 1 1 1 . 1 3 . . Phase Generator 1 | . . . . . . . . . . . . . . . . . . . . . . . . . 1 . Network Hub 2 | . . . . . . . . . . . . . . . . . . 2 . . . . . . . . Energy Cycler 1 | . . . . . . . . . . . . . . . . . . . . . . . . 1 . . Machines Repaired . | . . . . . . . . . . . . . . . . . . . . . . . . . . . Machines Dismantled . | . . . . . . . . . . . . . . . . . . . . . . . . . . . Machines Sabotaged 1 | . . . . . . . . . . . . . . . . . . 1 . . . . . . . . Overloaded Fab Kills . | . . . . . . . . . . . . . . . . . . . . . . . . . . . Hacking | -11 -10 -10 -7 -7 -5 -5 -5 -5 -5 -5 -4 -4 -4 -4 -4 -4 -4 -4 -3 -3 -2 -2 -2 -1 -1 -1 --------- Run | Yrd Mat Sub Rec Scr Fac Was Fac Upp Upp Zhi Pro Fac Was Fac Ext Cet Arc Hub Res Qua Res Tes Frg Acc Com Ac0 Machines Accessed 136 | . . 1 2 1 12 . 22 2 . 4 . 12 . 21 16 1 . 3 12 8 3 8 7 1 . . Terminals 80 | . . . 1 . 8 . 9 1 . . . 3 . 12 15 1 . 3 7 5 2 8 5 . . . Fabricators 8 | . . . . . 2 . 2 . . . . 1 . 2 . . . . 1 . . . . . . . Repair Stations 7 | . . . . . . . 1 . . . . . . 3 1 . . . 1 1 . . . . . . Recycling Units 21 | . . . 1 . 2 . 6 . . . . 5 . 3 . . . . 2 . . . 1 1 . . Scanalyzers 2 | . . . . . . . . . . . . 1 . . . . . . . 1 . . . . . . Garrison Access 11 | . . . . . . . 4 . . . . 2 . 1 . . . . 1 1 1 . 1 . . . Total Hacks 325 | . . 1 3 1 22 . 45 4 . 17 . 16 . 46 27 2 . 9 29 24 6 37 31 5 . . Successful 191 | . . 1 2 1 14 . 24 4 . 17 . 11 . 26 16 . . 5 15 15 3 17 19 1 . . Failed 134 | . . . 1 . 8 . 21 . . . . 5 . 20 11 2 . 4 14 9 3 20 12 4 . . Catastrophic 19 | . . . . . 1 . 6 . . . . 1 . . . . . . 4 2 . 3 1 1 . . Database Lockouts . | . . . . . . . . . . . . . . . . . . . . . . . . . . . Manual 126 | . . . 3 . 11 . 21 . . . . 8 . 19 2 1 . 5 10 9 . 23 14 . . . Terminals 217 | . . . 2 . 16 . 19 3 . . . 6 . 30 25 2 . 9 22 17 4 37 25 . . . Fabricators 20 | . . . . . 4 . 7 . . . . 2 . 6 . . . . 1 . . . . . . . Repair Stations 15 | . . . . . . . 2 . . . . . . 6 2 . . . 3 2 . . . . . . Recycling Units 30 | . . . 1 . 2 . 10 . . . . 5 . 3 . . . . 2 . . . 2 5 . . Scanalyzers 4 | . . . . . . . . . . . . 1 . . . . . . . 3 . . . . . . Garrison Access 19 | . . . . . . . 7 . . . . 2 . 1 . . . . 1 2 2 . 4 . . . Terminal Hacks 95 | . . 1 . 1 8 . 7 4 . 17 . 2 . 7 14 . . 2 8 6 2 8 8 . . . Record 8 | . . . . . . . . 3 . 5 . . . . . . . . . . . . . . . . Part Schematic 5 | . . . . . . . 1 . . 4 . . . . . . . . . . . . . . . . Robot Analysis 4 | . . . . . . . . . . 4 . . . . . . . . . . . . . . . . Prototype ID Bank 10 | . . . . . . . . . . 4 . . . 1 1 . . . 1 1 . 2 . . . . Open Door 14 | . . . . . . . . 1 . . . . . 1 10 . . . 1 . . 1 . . . . Open DSF 1 | . . . . . . . . . . . . . . . . . . . . . 1 . . . . . Level Access Points 5 | . . . . . 1 . . . . . . . . . . . . 1 . 1 . 1 1 . . . Branch Access Points 4 | . . . . . 1 . 1 . . . . . . 1 . . . . 1 . . . . . . . Machine Index 1 | . . . . . . . 1 . . . . . . . . . . . . . . . . . . . Terminal Index 4 | . . . . . 1 . 1 . . . . . . 1 . . . . . . . . 1 . . . Alert Level 1 | . . . . . . . . . . . . . . 1 . . . . . . . . . . . . Unreport Threat 5 | . . . . . . . . . . . . . . 1 2 . . . 1 1 . . . . . . Locate Traps 7 | . . . . . 4 . . . . . . . . . 1 . . . 1 1 . . . . . . Patrol Status 3 | . . . . . . . . . . . . . . . . . . . 1 . . . 2 . . . Recall Investigation 1 | . . . . . . . 1 . . . . . . . . . . . . . . . . . . . Recall Extermination 5 | . . . . . . . 1 . . . . 1 . . . . . . . 1 . 2 . . . . Recall Reinforcements 1 | . . . . . . . . . . . . . . . . . . . 1 . . . . . . . Hauler Manifests 3 | . . . . . . . . . . . . 1 . 1 . . . . . . . 1 . . . . Registered Prototypes 1 | . . . . . . . . . . . . . . . . . . . . 1 . . . . . . Zone Layout 9 | . . . . . 1 . 1 . . . . . . . . . . 1 1 . 1 1 3 . . . Proto ID Catalog 3 | . . 1 . 1 . . . . . . . . . . . . . . . . . . 1 . . . Fabricator Hacks 11 | . . . . . 1 . 5 . . . . . . 4 . . . . 1 . . . . . . . Network Status 2 | . . . . . . . . . . . . . . 1 . . . . 1 . . . . . . . Load Schematic 6 | . . . . . 1 . 3 . . . . . . 2 . . . . . . . . . . . . Build 3 | . . . . . . . 2 . . . . . . 1 . . . . . . . . . . . . Repair Station Hacks 11 | . . . . . . . 2 . . . . . . 3 2 . . . 2 2 . . . . . . Scan Component 6 | . . . . . . . 1 . . . . . . 2 1 . . . 1 1 . . . . . . Repair 5 | . . . . . . . 1 . . . . . . 1 1 . . . 1 1 . . . . . . Recycling Unit Hacks 1 | . . . . . . . . . . . . . . . . . . . . . . . . 1 . . Retrieve Components 1 | . . . . . . . . . . . . . . . . . . . . . . . . 1 . . Scanalyzer 4 | . . . . . . . . . . . . 1 . . . . . . . 3 . . . . . . Insert Component 4 | . . . . . . . . . . . . 1 . . . . . . . 3 . . . . . . Garrison Access Hacks 9 | . . . . . . . 2 . . . . 2 . 1 . . . . 1 1 1 . 1 . . . Seal Access 9 | . . . . . . . 2 . . . . 2 . 1 . . . . 1 1 1 . 1 . . . Unauthorized Hacks 60 | . . . 2 . 5 . 8 . . . . 6 . 11 . . . 3 3 3 . 9 10 . . . Terminals 34 | . . . 1 . 1 . 1 . . . . 1 . 5 . . . 3 1 3 . 9 9 . . . Track 8 | . . . . . 1 . . . . . . . . . . . . 1 . . . 3 3 . . . Assimilate 11 | . . . . . . . 1 . . . . 1 . 3 . . . 1 . 1 . 3 1 . . . Botnet 7 | . . . . . . . . . . . . . . 2 . . . . 1 1 . 1 2 . . . Disrupt 4 | . . . . . . . . . . . . . . . . . . . . . . 2 2 . . . Operators 2 | . . . . . . . . . . . . . . . . . . . . 1 . . 1 . . . Sabotage 1 | . . . . . . . . . . . . . . . . . . 1 . . . . . . . . Search 1 | . . . 1 . . . . . . . . . . . . . . . . . . . . . . . Fabricators 5 | . . . . . 2 . 1 . . . . . . 2 . . . . . . . . . . . . Prioritize 1 | . . . . . . . . . . . . . . 1 . . . . . . . . . . . . Liberate 1 | . . . . . 1 . . . . . . . . . . . . . . . . . . . . . Recompile 3 | . . . . . 1 . 1 . . . . . . 1 . . . . . . . . . . . . Repair Stations 1 | . . . . . . . . . . . . . . 1 . . . . . . . . . . . . Patch 1 | . . . . . . . . . . . . . . 1 . . . . . . . . . . . . Recycling Units 20 | . . . 1 . 2 . 6 . . . . 5 . 3 . . . . 2 . . . 1 . . . Tunnel 1 | . . . 1 . . . . . . . . . . . . . . . . . . . . . . . Fedlink 19 | . . . . . 2 . 6 . . . . 5 . 3 . . . . 2 . . . 1 . . . Scanalyzers . | . . . . . . . . . . . . . . . . . . . . . . . . . . . Garrison Access . | . . . . . . . . . . . . . . . . . . . . . . . . . . . Data Cores Recovered 7 | . . . . . 1 . 3 . . . . . . . 1 . . . . 1 . . 1 . . . Used 4 | . . . . . 1 . 2 . . . . . . . 1 . . . . . . . . . . . Hacking Detections 85 | . . . 1 . 9 . 16 1 . . . 5 . 15 11 2 . 3 6 5 . 6 5 . . . Full Trace Events 4 | . . . . . . . . 1 . . . 1 . 2 . . . . . . . . . . . . Feedback Events 1 | . . . . . . . . 1 . . . . . . . . . . . . . . . . . . Corruption 1 | . . . . . . . . 1 . . . . . . . . . . . . . . . . . . Feedback Blocked . | . . . . . . . . . . . . . . . . . . . . . . . . . . . Robot Schematics Acquired 4 | . . . . . . . . . . . . . . . . . . . . . . . 4 . . . Robots Built . | . . . . . . . . . . . . . . . . . . . . . . . . . . . Authchips . | . . . . . . . . . . . . . . . . . . . . . . . . . . . Time . | . . . . . . . . . . . . . . . . . . . . . . . . . . . Total Robot Build Rating . | . . . . . . . . . . . . . . . . . . . . . . . . . . . Part Schematics Acquired 32 | . . . . . 8 . 5 . . 4 . . . . . . . . . . . 4 11 . . . Parts Built 3 | . . . . . . . 2 . . . . . . 1 . . . . . . . . . . . . Authchips 3 | . . . . . . . 2 . . . . . . 1 . . . . . . . . . . . . Time 243 | . . . . . . . 109 . . . . . . 134 . . . . . . . . . . . . Total Part Build Rating 12 | . . . . . . . 8 . . . . . . 4 . . . . . . . . . . . . Parts Repaired 5 | . . . . . . . 1 . . . . . . 1 1 . . . 1 1 . . . . . . Time 341 | . . . . . . . 56 . . . . . . 34 99 . . . 108 44 . . . . . . Parts Recycled . | . . . . . . . . . . . . . . . . . . . . . . . . . . . Recycled Matter . | . . . . . . . . . . . . . . . . . . . . . . . . . . . Retrieved Matter . | . . . . . . . . . . . . . . . . . . . . . . . . . . . Retrieved Components 3 | . . . . . . . . . . . . . . . . . . . . . . . . 3 . . Parts Scanalyzed . | . . . . . . . . . . . . . . . . . . . . . . . . . . . Part Schematics Acquired . | . . . . . . . . . . . . . . . . . . . . . . . . . . . Parts Damaged . | . . . . . . . . . . . . . . . . . . . . . . . . . . . Bothacking | -11 -10 -10 -7 -7 -5 -5 -5 -5 -5 -5 -4 -4 -4 -4 -4 -4 -4 -4 -3 -3 -2 -2 -2 -1 -1 -1 ------------ Run | Yrd Mat Sub Rec Scr Fac Was Fac Upp Upp Zhi Pro Fac Was Fac Ext Cet Arc Hub Res Qua Res Tes Frg Acc Com Ac0 Used RIF Installer . | . . . . . . . . . . . . . . . . . . . . . . . . . . . Robots Hacked . | . . . . . . . . . . . . . . . . . . . . . . . . . . . Non-combat . | . . . . . . . . . . . . . . . . . . . . . . . . . . . Combat . | . . . . . . . . . . . . . . . . . . . . . . . . . . . Robot Hacks Applied . | . . . . . . . . . . . . . . . . . . . . . . . . . . . Relay Couplers Released 8 | . . . . . . . . . . . . . . 3 . . . . . . . . . 5 . . Machine Destruction 8 | . . . . . . . . . . . . . . 3 . . . . . . . . . 5 . . Fabnet Peak Effective % . | . . . . . . . . . . . . . . . . . . . . . . . . . . . Robots Rewired 14 | . . . . . . . . . . . . . . . 14 . . . . . . . . . . . Allies Hacked 1 | . . . . . 1 . . . . . . . . . . . . . . . . . . . . . Hacks Repelled . | . . . . . . . . . . . . . . . . . . . . . . . . . . . Allies | -11 -10 -10 -7 -7 -5 -5 -5 -5 -5 -5 -4 -4 -4 -4 -4 -4 -4 -4 -3 -3 -2 -2 -2 -1 -1 -1 -------- Run | Yrd Mat Sub Rec Scr Fac Was Fac Upp Upp Zhi Pro Fac Was Fac Ext Cet Arc Hub Res Qua Res Tes Frg Acc Com Ac0 Total Allies 50 | . . . . . 3 . 1 . . . . 1 . 3 33 5 . 1 . 1 . 2 . . . . Largest Group 26 | . . . . . 3 . 1 . . . . 1 . 1 26 25 23 20 . 1 1 2 . . . . Highest-Rated Group 1451 | . . . . . 87 . 26 . . . . 26 . 40 1225 1451 1359 1118 . 26 26 47 . . . . Highest-Rated Ally 159 | . . . . . 29 . 26 . . . . 26 . 40 159 143 137 96 . 26 26 26 . . . . Total Orders 50 | . . . . . . . . . . . . . . 4 1 4 2 . . 11 . 3 . . . 25 STAY 13 | . . . . . . . . . . . . . . 3 1 1 . . . 6 . 2 . . . . ROAM 1 | . . . . . . . . . . . . . . . . . 1 . . . . . . . . . FOLLOW 11 | . . . . . . . . . . . . . . 1 . 3 1 . . 5 . 1 . . . . EXPLORE 17 | . . . . . . . . . . . . . . . . . . . . . . . . . . 17 RETURN 8 | . . . . . . . . . . . . . . . . . . . . . . . . . . 8 Ally Attacks 248 | . . . . . 22 . . . . . . . . . 112 73 18 23 . . . . . . . . Total Damage 5846 | . . . . . 243 . . . . . . . . . 3049 1423 529 602 . . . . . . . . Kills 30 | . . . . . 2 . . . . . . . . . 14 9 4 1 . . . . . . . . Allies Corrupted 3 | . . . . . . . . . . . . . . . . . . 3 . . . . . . . . Allies Melted 6 | . . . . . . . . . . . . . . . 1 . . . . . . . 5 . . . Intel | -11 -10 -10 -7 -7 -5 -5 -5 -5 -5 -5 -4 -4 -4 -4 -4 -4 -4 -4 -3 -3 -2 -2 -2 -1 -1 -1 ------- Run | Yrd Mat Sub Rec Scr Fac Was Fac Upp Upp Zhi Pro Fac Was Fac Ext Cet Arc Hub Res Qua Res Tes Frg Acc Com Ac0 Active Infowar (turns) 28945 | 10 252 4470 655 1631 1032 22 1494 363 222 38 442 602 24 868 972 376 900 34 605 527 124 449 8345 1255 3233 . Optics 17343 | . . . . . 667 22 1494 363 222 38 442 602 24 868 972 376 900 34 605 527 124 449 8345 269 . . Sensors 11115 | . . . . . 355 . 1367 363 222 38 442 597 24 861 972 376 900 34 595 524 124 421 503 471 1926 . A.S.S. 5820 | . . . . . . . . . . . . . . . . . . . . . . . 5552 268 . . Structural 1846 | . . . . . . . . . . . 10 582 . . . . . . 39 527 124 409 155 . . . Seismic 7377 | 10 252 4470 655 1631 359 . . . . . . . . . . . . . . . . . . . . . Machine Analysis 7947 | . . . . . 1032 22 1494 363 222 38 442 602 24 868 972 376 900 34 558 . . . . . . . Cloaking 3001 | . . . . . . . . . . . . . . . . . . . . . . . 1179 515 1307 . Jamming 80 | . . . . . . . . . . . . . . . . . . . . 22 . 33 25 . . . ECM 948 | . . . . . 16 . 364 48 1 1 328 42 . 124 . . . . 24 . . . . . . . Robot Analysis Total 4 | . . . . . . . . . . 4 . . . . . . . . . . . . . . . . Derelict Logs Recovered 9 | . . 1 . 5 . . . 1 . . 2 . . . . . . . . . . . . . . . Drone Launches 14 | . . . . . . . . . . . . . . . . . . . . . . . . . . 14 Drone Recoveries 12 | . . . . . . . . . . . . . . . . . . . . . . . . . . 12 Exploration | -11 -10 -10 -7 -7 -5 -5 -5 -5 -5 -5 -4 -4 -4 -4 -4 -4 -4 -4 -3 -3 -2 -2 -2 -1 -1 -1 ------------- Run | Yrd Mat Sub Rec Scr Fac Was Fac Upp Upp Zhi Pro Fac Was Fac Ext Cet Arc Hub Res Qua Res Tes Frg Acc Com Ac0 Turns Passed 54278 | 24 252 4470 655 2064 1045 22 1494 363 222 38 442 602 24 868 972 376 900 34 605 527 124 449 8995 7168 20564 979 Spaces Moved 43023 | 12 155 1714 424 1407 2086 64 2585 910 680 119 932 1312 91 1769 1198 295 74 103 1342 1273 382 941 12362 2539 7748 506 Core 9 | . . . . . . . . . . . . . . . . . . . . . . . . . . 9 Treads 10825 | . . 1480 . . . . . . . . . . . . . . . . . . . . 1349 2539 5457 . Legs 3141 | 12 155 186 . . . . . . . . . . . . . . . . . . . . . . 2291 497 Wheels 1879 | . . 48 424 1407 . . . . . . . . . . . . . . . . . . . . . . Hover . | . . . . . . . . . . . . . . . . . . . . . . . . . . . Flight 27169 | . . . . . 2086 64 2585 910 680 119 932 1312 91 1769 1198 295 74 103 1342 1273 382 941 11013 . . . Fastest Speed 15 | 120 120 120 107 140 25 34 21 21 25 25 18 15 25 17 27 27 27 27 16 26 26 15 15 151 106 50 Average Speed 70 | 120 120 168 134 140 30 34 28 27 25 25 24 24 25 26 28 27 27 27 26 26 26 25 37 159 146 110 Slowest Speed 240 | 120 120 240 140 215 110 34 34 28 28 25 25 25 25 27 97 27 27 27 95 26 26 95 160 163 182 186 Overloaded Moves 620 | . . . . . . . 10 11 . . 6 13 . 29 . . . . 34 . . 67 450 . . . Propulsion Burnouts . | . . . . . . . . . . . . . . . . . . . . . . . . . . . Robots Hopped 206 | . . . . . 11 . 27 . 2 . . 20 . 12 17 . . 2 15 1 . 11 88 . . . Potential Cave-ins . | . . . . . . . . . . . . . . . . . . . . . . . . . . . Cave-ins Triggered . | . . . . . . . . . . . . . . . . . . . . . . . . . . . Teleports 3 | . . . . . . . . . . . . . . . . . . . . . . . 1 . 1 1 Exploration Rate (%) 61 | 2 36 76 43 86 43 70 67 86 82 61 88 31 80 49 86 88 78 16 35 82 10 90 79 70 86 47 Regions Visited 26 Branch Regions 16 Pre-discovered Areas 7 | . . 1 1 . 1 . . . . 3 1 . . . . . . . . . . . . . . . Known Exits Taken 15 | . . . . . . . 1 1 1 1 1 . . 1 1 1 1 1 1 1 1 1 1 . . . Unknown Exits Taken 7 | 1 1 1 1 1 . . . . . . . . . . . . . . . . . . . 1 1 . Scrap Searched 23 | . . 8 . 6 . . . 3 3 . 3 . . . . . . . . . . . . . . . Spaces Dug 387 | . . 1 2 . 37 . 51 4 8 . 17 17 . 23 3 13 . . 11 10 4 13 3 54 105 11 Terrain Destroyed 2884 | . . 2 13 . 63 . 70 54 14 . 104 30 . 43 63 15 . . 11 46 4 28 213 366 1501 244 Melee 207 | . . . . . 37 . 50 1 8 . 16 17 . 22 3 13 . . 11 9 4 13 3 . . . Projectile 2080 | . . 2 13 . . . 6 6 6 . 22 4 . 9 1 2 . . . 3 . . 5 360 1420 221 AOE 502 | . . . . . 24 . 10 47 . . 66 9 . 12 59 . . . . 34 . 15 157 2 67 . Terrain Rammed . | . . . . . . . . . . . . . . . . . . . . . . . . . . . Walls Destroyed . | . . . . . . . . . . . . . . . . . . . . . . . . . . . Machines Disabled . | . . . . . . . . . . . . . . . . . . . . . . . . . . . Actions | -11 -10 -10 -7 -7 -5 -5 -5 -5 -5 -5 -4 -4 -4 -4 -4 -4 -4 -4 -3 -3 -2 -2 -2 -1 -1 -1 --------- Run | Yrd Mat Sub Rec Scr Fac Was Fac Upp Upp Zhi Pro Fac Was Fac Ext Cet Arc Hub Res Qua Res Tes Frg Acc Com Ac0 Total 65504 | 15 190 3162 488 1504 2375 63 3181 1001 708 126 1079 1522 91 2080 1759 561 948 104 1538 1419 397 1077 16055 5921 17409 731 Wait 18218 | . 12 1317 29 62 143 . 480 77 10 4 96 181 . 233 431 240 868 3 149 93 12 81 2675 2587 8406 29 Move 42627 | 11 154 1713 423 1406 2064 63 2534 909 675 118 931 1274 90 1744 1164 294 73 98 1314 1270 381 919 12215 2538 7747 505 Hop 161 | . . . . . 11 . 23 . 2 . . 18 . 12 16 . . 2 12 1 . 10 54 . . . Pick Up 434 | . 5 17 11 15 7 . 5 . . 1 . 3 1 7 1 . . . 2 5 . 7 150 69 112 16 Fast Attach 142 | 1 . 2 1 1 13 . 13 . 3 1 . 5 . 6 1 . 2 . 9 5 . 2 42 7 16 12 Attach 153 | . . 6 . 3 14 . 4 . 1 1 . 1 . 2 . . . . 1 6 . 4 58 11 21 20 Detach 133 | . . 1 . 3 2 . 5 . 1 1 . 2 . 1 . . 1 . 4 6 . 2 60 9 20 15 Swap 511 | . 1 9 3 2 11 . 8 2 1 . 5 4 . 17 . 2 . . 13 . . 2 77 139 212 3 Drop 458 | . 2 12 2 11 27 . 9 . 1 . . 4 . 7 1 3 1 . 9 3 . 10 153 71 115 17 Fire 1940 | 3 16 85 19 . 17 . 21 11 6 . 29 5 . 17 20 7 . . 1 9 . 12 309 489 750 114 Melee 476 | . . . . . 66 . 79 2 8 . 18 25 . 34 21 15 3 1 24 21 4 28 127 . . . Ram . | . . . . . . . . . . . . . . . . . . . . . . . . . . . Kick . | . . . . . . . . . . . . . . . . . . . . . . . . . . . Crush 1 | . . . . . . . . . . . . . . . . . . . . . . . . . 1 . Escape Stasis 176 | . . . . . . . . . . . . . . . 48 . . . . . . . 127 1 . . Rewire 66 | . . . . . . . . . . . . . . . 56 . . . . . . . 1 . 9 . Trap 1 | . . . . 1 . . . . . . . . . . . . . . . . . . . . . . Miscellaneous 7 | . . . . . . . . . . . . . . . . . . . . . . . 7 . . . Route ------- -11/Scrapyard -10/Materials (discovered 2 exits: [*Mat] / *Sub) -10/Subcaves (discovered 4 exits: [*Mat x2] / *Rec / *Scr) -7/Recycling (discovered 2 exits: *Fac / *Scr) -7/Scraptown (discovered 2 exits: *Fac x2) -5/Factory (discovered 6 exits: *Fac x4 / *Upp x2) -5/Waste -5/Factory (discovered 6 exits: *Fac x4 / *Upp x2) -5/Upper Caves -5/Upper Caves (discovered 2 exits: *Fac / *Zhi) -5/Zhirov -4/Proximity Caves -4/Factory (discovered 3 exits: *Res x2 / Upp) -4/Waste -4/Factory (discovered 6 exits: *Res / *Upp x2 / *Ext x2 / Arm) -4/Extension (discovered 2 exits: *Res / *Cet) -4/Cetus (discovered 2 exits: *Res / *Arc) -4/Archives (discovered 2 exits: *Res / *Hub) -4/Hub_04(d) (discovered 4 exits: *Res x4) -3/Research (discovered 2 exits: *Qua x2) -3/Quarantine -2/Research (discovered 3 exits: *Tes x2 / DSF) -2/Testing (discovered 3 exits: *Acc / *Sec / *Frg) -2/Protoforge -1/Access (discovered 2 exits: [*Sur] / [*Com]) -1/Command (discovered 3 exits: [*Sur x2] / [*Ac0]) -1/Access_0 Near Former Tau Ceti IV History --------- Turn | Location | Event 10 | -11/Scrapyard | Discovered new exit (range 3) 25 | -11/Scrapyard | Entered Materials 26 | -10/Materials | Met a group of wandering Federalists 205 | -10/Materials | Discovered new exit (range 14) 270 | -10/Materials | Discovered new exit (range 8) 277 | -10/Materials | Entered Subcaves 278 | -10/Subcaves | Continued accompanying wandering Federalists (4) 332 | -10/Subcaves | Build established: Mutant 518 | -10/Subcaves | Discovered new exit (range 9) 876 | -10/Subcaves | A swath of the cavern ceiling suddenly collapsed 1095 | -10/Subcaves | A swath of the cavern ceiling suddenly collapsed 1379 | -10/Subcaves | Learned location of Storage (-7) 2295 | -10/Subcaves | Discovered new exit (range 12) 3221 | -10/Subcaves | Visited 4L-MR0's lab 3241 | -10/Subcaves | Found Gun Armor 3847 | -10/Subcaves | Core integrity fell below 50% 4712 | -10/Subcaves | Discovered new exit (range 10) 4727 | -10/Subcaves | Core integrity fell below 20% 4747 | -10/Subcaves | Entered Recycling 4935 | -7/Recycling | Discovered new exit (range 5) 5059 | -7/Recycling | Scanned before Scraplab entrance 5101 | -7/Recycling | Build established: Scavenger-Mutant 5388 | -7/Recycling | Entered Scraplab 5399 | -7/Recycling | Discovered new exit (range 3) 5402 | -7/Recycling | Entered Scraptown 5721 | -7/Scraptown | Discovered new exit (range 13) 5758 | -7/Scraptown | Scanned Subdweller tech in exchange for log data 5761 | -7/Scraptown | Learned Research interactive machine intel 5762 | -7/Scraptown | Learned location of 1 exit from Research 5763 | -7/Scraptown | Learned 12 Factory zone layouts 5765 | -7/Scraptown | Learned Research security intel 5766 | -7/Scraptown | Learned Factory stockpile data 5800 | -7/Scraptown | Visited Assassins FH 5829 | -7/Scraptown | Visited Cyclists 5849 | -7/Scraptown | Visited Bundlers 5979 | -7/Scraptown | Visited The Evicted 6009 | -7/Scraptown | Visited TADAMA 6031 | -7/Scraptown | Visited Cave Peace 6093 | -7/Scraptown | Visited Awakened 6296 | -7/Scraptown | Visited UFD Registry 6296 | -7/Scraptown | Registered with UFD as "Shockflow" 6343 | -7/Scraptown | Visited Science Guys 6394 | -7/Scraptown | Visited DA-N13 Charitable Foundation 6406 | -7/Scraptown | Found DCF Scrap (27 items) 6485 | -7/Scraptown | Visited Modified Component R&D 6534 | -7/Scraptown | Visited Observation Area 6554 | -7/Scraptown | Visited Scrapoid Pod Storage 6576 | -7/Scraptown | Visited A0-MCA Data Center 6585 | -7/Scraptown | Given a C rating by A0-MCA 6587 | -7/Scraptown | Found A0-MCA's Component Scanner 6631 | -7/Scraptown | Visited Curators Association 6679 | -7/Scraptown | Visited Scrapoid Research Area 6775 | -7/Scraptown | Delivered Scrap Shield to a Scientist 7033 | -7/Scraptown | Warned about trapping Scraptown 7126 | -7/Scraptown | Found Voltaic Drivehammer 7222 | -7/Scraptown | Discovered new exit (range 3) 7228 | -7/Scraptown | System corruption cleaned by C-Scrubber 7297 | -7/Scraptown | Found Scrapoid Pod 7314 | -7/Scraptown | Build established: Mutant 7396 | -7/Scraptown | Met Optimus 7396 | -7/Scraptown | Accepted into 0bPrime 7466 | -7/Scraptown | Entered Factory 7466 | -5/Factory | Evolved 10 slots: Propulsion x3, Utility x7 7489 | -5/Factory | Attached Gun Armor, gained temporary slots: Weapon x2 7506 | -5/Factory | Identified exit to Upper Caves 7542 | -5/Factory | Discovered new exit (range 16) 7566 | -5/Factory | Tech Extrapolator generated special schematic: Deep Structural Scanner 7648 | -5/Factory | Identified exit to Factory 7840 | -5/Factory | Discovered exit to Factory (range 4) 7994 | -5/Factory | Loaded intel: 8 recycling unit locations 8366 | -5/Factory | Search patrols dispatched 8378 | -5/Factory | Spotted B-75 Beast 8380 | -5/Factory | Learned location of Protoforge (-2) 8511 | -5/Factory | Manually triggered Chute Trap 8511 | -5/Factory | Sucked down chute 8511 | -5/Factory | Entered Waste 8519 | -5/Waste | Spotted C-40 Crusher 8520 | -5/Waste | Spotted C-40 Crusher 8521 | -5/Waste | Spotted C-40 Crusher 8526 | -5/Waste | EMP discharged 8526 | -5/Waste | Spotted C-40 Crusher 8527 | -5/Waste | Spotted C-40 Crusher 8529 | -5/Waste | Discovered new exit (range 12) 8529 | -5/Waste | Spotted C-40 Crusher 8533 | -5/Waste | Identified exit to Factory 8533 | -5/Waste | Entered Factory 8606 | -5/Factory | Fabricated Deep Structural Scanner? 9047 | -5/Factory | Discovered exit to Factory (range 22) 9146 | -5/Factory | Fabricated Cld. VTOL Module? 9630 | -5/Factory | Discovered exit to Factory (range 21) 9746 | -5/Factory | Repaired Nuclear Pulse Array 9813 | -5/Factory | Loaded intel: 8 recycling unit locations 9840 | -5/Factory | Discovered exit to Factory (range 18) 9917 | -5/Factory | Found Mni. Smartbomb Launcher 9937 | -5/Factory | Discovered exit to Factory (range 20) 10027 | -5/Factory | Entered Upper Caves 10029 | -5/Upper Caves | UFD Scientist delivered a prototype 10038 | -5/Upper Caves | Build established: Hacker-Ninja 10062 | -5/Upper Caves | Encountered a Warlord checkpoint 10133 | -5/Upper Caves | Identified exit to Upper Caves 10385 | -5/Upper Caves | Learned Factory garrison access intel 10385 | -5/Upper Caves | Learned Research emergency access door positions 10385 | -5/Upper Caves | Learned 6 Lower Caves zone layouts 10388 | -5/Upper Caves | Attracted the attention of an 0b10 base 10390 | -5/Upper Caves | Entered another Upper Caves area 10401 | -5/Upper Caves | Found Alien Artifact 10401 | -5/Upper Caves | Identified Core Expander 10401 | -5/Upper Caves | Installed Core Expander, added new Propulsion slot 10408 | -5/Upper Caves | Discovered exit to Factory (range 12) 10562 | -5/Upper Caves | Discovered new exit (range 9) 10611 | -5/Upper Caves | Identified exit to Zhirov 10612 | -5/Upper Caves | Entered Zhirov 10612 | -5/Zhirov | Discovered new exit (range 3) 10617 | -5/Zhirov | Met Zhirov 10622 | -5/Zhirov | Learned location of Quarantine (-3) 10622 | -5/Zhirov | Learned location of Testing (-2) 10622 | -5/Zhirov | Learned location of Command (-1) 10624 | -5/Zhirov | Zhirov requested help retrieving the SGEMP Prototype 10628 | -5/Zhirov | Found Alien Artifact 10628 | -5/Zhirov | Identified Integrated Reactor 10628 | -5/Zhirov | Installed Integrated Reactor, increased core energy generation (+10) 10639 | -5/Zhirov | Found Alien Artifact 10650 | -5/Zhirov | Identified exit to Proximity Caves 10650 | -5/Zhirov | Entered Proximity Caves 10686 | -4/Proximity Caves | Learned Research stockpile data 11045 | -4/Proximity Caves | Spotted B-86 Titan 11072 | -4/Proximity Caves | Discovered exit to Factory (range 14) 11075 | -4/Proximity Caves | Learned location of Armory (-4) 11092 | -4/Proximity Caves | Entered Factory 11092 | -4/Factory | Evolved 2 slots: Weapon x2 11093 | -4/Factory | Loaded intel: 4 garrison access locations 11206 | -4/Factory | Loaded intel: 8 recycling unit locations 11272 | -4/Factory | Discovered new exit (range 13) 11275 | -4/Factory | Identified exit to Research 11312 | -4/Factory | Spotted B-86 Titan 11352 | -4/Factory | Discovered exit to Research (range 19) 11356 | -4/Factory | Build established: Hacker-Scout 11432 | -4/Factory | Identified Transdimensional Reconstructor 11520 | -4/Factory | Discovered new exit (range 18) 11694 | -4/Factory | Manually triggered Chute Trap 11694 | -4/Factory | Sucked down chute 11694 | -4/Factory | Entered Waste 11696 | -4/Waste | Spotted C-40 Crusher 11699 | -4/Waste | Spotted C-40 Crusher 11704 | -4/Waste | Spotted C-40 Crusher 11705 | -4/Waste | Spotted C-40 Crusher 11709 | -4/Waste | EMP discharged 11709 | -4/Waste | Spotted C-40 Crusher 11712 | -4/Waste | Discovered new exit (range 10) 11712 | -4/Waste | Spotted C-40 Crusher 11718 | -4/Waste | Identified exit to Factory 11718 | -4/Waste | Entered Factory 11731 | -4/Factory | Spotted B-86 Titan 11798 | -4/Factory | Repaired Impulse Thruster Array 12012 | -4/Factory | Fabricated Cld. VTOL Module (x1) 12040 | -4/Factory | Identified exit to Upper Caves 12040 | -4/Factory | Identified exit to Extension 12040 | -4/Factory | Identified exit to Armory 12344 | -4/Factory | Loaded intel: 8 recycling unit locations 12526 | -4/Factory | Discovered exit to Research (range 5) 12586 | -4/Factory | Entered Extension 12586 | -4/Extension | Accompanied by 1 ally 12651 | -4/Extension | Rescued a captive Derelict 12654 | -4/Extension | Rescued a captive Derelict 12711 | -4/Extension | Spotted B-86 Titan 12856 | -4/Extension | Rescued a captive Derelict 12857 | -4/Extension | Rescued a captive Derelict 12860 | -4/Extension | Rescued a captive Derelict 12862 | -4/Extension | Rescued a captive Derelict 12913 | -4/Extension | Rescued a captive Derelict 13086 | -4/Extension | Spotted B-86 Titan 13096 | -4/Extension | Destroyed B-86 Titan 13106 | -4/Extension | Allies destroyed B-86 Titan 13149 | -4/Extension | Rescued A7 13159 | -4/Extension | Rescued a captive Derelict 13160 | -4/Extension | Rescued a captive Derelict 13164 | -4/Extension | Rescued a captive Derelict 13164 | -4/Extension | Rescued a captive Derelict 13166 | -4/Extension | Rescued a captive Derelict 13168 | -4/Extension | Rescued a captive Derelict 13194 | -4/Extension | Build established: Commander-Scout 13194 | -4/Extension | Rescued a captive Derelict 13195 | -4/Extension | Rescued a captive Derelict 13324 | -4/Extension | Repaired Cld. Field Propulsion Drive 13372 | -4/Extension | Rescued a captive Derelict 13374 | -4/Extension | Rescued a captive Derelict 13414 | -4/Extension | Rescued a captive Derelict 13421 | -4/Extension | Discovered exit to Research (range 10) 13479 | -4/Extension | Discovered new exit (range 15) 13487 | -4/Extension | Identified exit to Cetus 13558 | -4/Extension | Entered Cetus 13558 | -4/Cetus | Accompanied by 25 allies (A7) 13563 | -4/Cetus | Acquired a Cetus Manufacturing Module code from A7 13563 | -4/Cetus | Spotted Cetus Guard 13563 | -4/Cetus | Spotted Cetus Guard 13573 | -4/Cetus | Spotted Cetus Guard 13573 | -4/Cetus | Spotted Cetus Guard 13576 | -4/Cetus | Allies destroyed Cetus Guard 13600 | -4/Cetus | Allies destroyed Cetus Guard 13602 | -4/Cetus | Allies destroyed Cetus Guard 13622 | -4/Cetus | Started Cetus Manufacturing Module 13626 | -4/Cetus | Lost 5 allies 13647 | -4/Cetus | Manufactured an Enhanced Grunt 13660 | -4/Cetus | Escorted A7 to Cetus Mainframe 13672 | -4/Cetus | Manufactured an Enhanced Grunt 13691 | -4/Cetus | Discovered new exit (range 21) 13697 | -4/Cetus | Manufactured an Enhanced Grunt 13722 | -4/Cetus | Manufactured an Enhanced Grunt 13731 | -4/Cetus | Identified exit to Archives 13747 | -4/Cetus | Manufactured an Enhanced Grunt 13812 | -4/Cetus | Spotted Cetus Guard 13812 | -4/Cetus | Spotted Cetus Guard 13815 | -4/Cetus | Spotted Cetus Guard 13823 | -4/Cetus | Allies destroyed Cetus Guard 13827 | -4/Cetus | Allies destroyed Cetus Guard 13827 | -4/Cetus | Spotted Cetus Guard 13828 | -4/Cetus | Destroyed Cetus Guard 13831 | -4/Cetus | Allies destroyed Cetus Guard 13832 | -4/Cetus | Discovered exit to Research (range 21) 13845 | -4/Cetus | Met Revision 17 13934 | -4/Cetus | Entered Archives 13934 | -4/Archives | Accompanied by 23 allies (A7) 13939 | -4/Archives | Received a hacking code to weaken MAIN.C 14110 | -4/Archives | Discovered exit to Research (range 19) 14111 | -4/Archives | Discovered new exit (range 14) 14116 | -4/Archives | Identified exit to Hub_04(d) 14834 | -4/Archives | Entered Hub_04(d) 14834 | -4/Hub_04(d) | Accompanied by 19 allies 14850 | -4/Hub_04(d) | Network Hub disabled 14850 | -4/Hub_04(d) | Network Hub disabled 14868 | -4/Hub_04(d) | Entered Research 14868 | -3/Research | Evolved 2 slots: Power x1, Weapon x1 14869 | -3/Research | Identified exit to Quarantine 14873 | -3/Research | Loaded intel: 47 interactive machine locations 15068 | -3/Research | Revision forces began assault on 0b10 15073 | -3/Research | Met up with Revision 17++ 15113 | -3/Research | Repaired Centrium Medium Armor Plating 15164 | -3/Research | Build established: Hacker-Scout 15326 | -3/Research | Loaded intel: 5 recycling unit locations 15473 | -3/Research | Entered Quarantine 15482 | -3/Quarantine | Found Alien Artifact 15482 | -3/Quarantine | Identified Subatomic Replicator 15516 | -3/Quarantine | Cryocooling Duct disabled 15527 | -3/Quarantine | Identified exit to Research 15531 | -3/Quarantine | Ambient heat levels rising (+20) 15531 | -3/Quarantine | Non-combat units ordered to evacuate 15548 | -3/Quarantine | Found Alien Slashing Weapon 15548 | -3/Quarantine | Identified Sigix Broadsword 15680 | -3/Quarantine | Repaired Mni. Smartbomb Launcher 15883 | -3/Quarantine | Found Alien Artifact 15897 | -3/Quarantine | Used Subatomic Replicator to create Alien Artifact 15905 | -3/Quarantine | Found Alien Artifact 15945 | -3/Quarantine | Identified Dimensional Node Initializer 15945 | -3/Quarantine | Identified Hpw. Transdimensional Reconstructor 15945 | -3/Quarantine | Identified Supercharged TR 16000 | -3/Quarantine | Entered Research 16000 | -2/Research | Accompanied by 1 ally 16000 | -2/Research | Evolved 2 slots: Utility x1, Weapon x1 16012 | -2/Research | Identified exit to DSF 16014 | -2/Research | Build established: Hacker-Ninja 16089 | -2/Research | Discovered new exit (range 21) 16101 | -2/Research | Discovered new exit (range 15) 16110 | -2/Research | Identified exit to Testing 16124 | -2/Research | Entered Testing 16124 | -2/Testing | Accompanied by 1 ally 16149 | -2/Testing | Identified exit to Access 16158 | -2/Testing | Found Exp. Armor Integrity Analyzer 16242 | -2/Testing | Spotted Striker 16248 | -2/Testing | Spotted Striker 16256 | -2/Testing | Found System Mapper 16416 | -2/Testing | Found Perforator 16445 | -2/Testing | Found Z-bomb Delivery System 16474 | -2/Testing | Found 2N-1CE's Frost Array 16527 | -2/Testing | Spotted Fortress 16544 | -2/Testing | Discovered new exit (range 6) 16544 | -2/Testing | Discovered new exit (range 7) 16545 | -2/Testing | Identified exit to Section 7 16546 | -2/Testing | Identified exit to Protoforge 16573 | -2/Testing | Entered Protoforge 16694 | -2/Protoforge | Spotted Hotshot 16698 | -2/Protoforge | Superfortress began startup sequence 16742 | -2/Protoforge | Spotted Hotshot 16742 | -2/Protoforge | Spotted Hotshot 16767 | -2/Protoforge | Spotted V203-e 16789 | -2/Protoforge | Spotted EXE-6 16789 | -2/Protoforge | Spotted EXE-6 16799 | -2/Protoforge | UFD initiated attack on Protoforge 16799 | -2/Protoforge | Loaded intel: 3 recycling unit locations 16834 | -2/Protoforge | Found Cep. XC Strikerail 16835 | -2/Protoforge | Optimus greeted in Protoforge 16841 | -2/Protoforge | Found Exp. Core Analyzer 16853 | -2/Protoforge | Spotted SKR-2 16858 | -2/Protoforge | Found Dimensional Node Initializer 16859 | -2/Protoforge | Initialized slip node 16877 | -2/Protoforge | Warped through subspace to slip node 16880 | -2/Protoforge | Optimus attacked Superfortress 16890 | -2/Protoforge | Spotted Striker 16895 | -2/Protoforge | Found Centrium Heavy Armor Plating 16899 | -2/Protoforge | Found Cep. Zero-point Core 16901 | -2/Protoforge | Found Cld. Nova Cannon 16905 | -2/Protoforge | Found Cep. Zero-point Core 16908 | -2/Protoforge | Found Cep. NT7 Matterbank 16924 | -2/Protoforge | Lost 7 allies 16926 | -2/Protoforge | Spotted SKR-2 16926 | -2/Protoforge | Spotted SKR-2 16936 | -2/Protoforge | Forge Plexus network access discovered 16959 | -2/Protoforge | Lost 3 allies 17010 | -2/Protoforge | Destroyed Hotshot 17059 | -2/Protoforge | Destroyed Hotshot 17064 | -2/Protoforge | Spotted Immortal 17064 | -2/Protoforge | Spotted Immortal 17066 | -2/Protoforge | Spotted Decapitator 17066 | -2/Protoforge | Spotted Decapitator 17066 | -2/Protoforge | Spotted Decapitator 17066 | -2/Protoforge | Spotted Decapitator 17081 | -2/Protoforge | Found Faulty Cep. Deflector Sword 17084 | -2/Protoforge | Spotted V856-g 17084 | -2/Protoforge | Spotted V471-x 17084 | -2/Protoforge | Spotted V673-y 17084 | -2/Protoforge | Spotted V582-y 17099 | -2/Protoforge | Spotted Executioner 17104 | -2/Protoforge | Spotted Executioner 17106 | -2/Protoforge | Spotted Executioner 17109 | -2/Protoforge | Spotted Executioner 17153 | -2/Protoforge | Build established: Scavenger-Sprinter 17178 | -2/Protoforge | Destroyed Executioner 17207 | -2/Protoforge | Lost 5 allies 17415 | -2/Protoforge | Found Cep. Lightning Penetrator 17425 | -2/Protoforge | Found Crosscalibrator 17458 | -2/Protoforge | Destroyed Immortal 17460 | -2/Protoforge | Destroyed Immortal 17495 | -2/Protoforge | Found Cep. Helical Railcannon 17532 | -2/Protoforge | Destroyed Decapitator 17532 | -2/Protoforge | Destroyed Decapitator 17532 | -2/Protoforge | Destroyed Decapitator 17555 | -2/Protoforge | Found Exp. Terror Saw 17558 | -2/Protoforge | Found Faulty Cep. Heavy Railcannon 17563 | -2/Protoforge | Found Faulty Cep. Variable Chargecaster 17592 | -2/Protoforge | Found Faulty Cep. Zero-point Core 17594 | -2/Protoforge | Found Faulty Cep. Zero-point Core 17668 | -2/Protoforge | Found Exp. Jetlance 17673 | -2/Protoforge | Found Faulty Exp. Jetlance 17674 | -2/Protoforge | Found Exp. Terror Saw 17692 | -2/Protoforge | Spotted Decapitator 17692 | -2/Protoforge | Spotted Decapitator 17692 | -2/Protoforge | Spotted Decapitator 17692 | -2/Protoforge | Spotted V927-m 17692 | -2/Protoforge | Spotted V147-t 17700 | -2/Protoforge | Destroyed Decapitator 17700 | -2/Protoforge | Destroyed Decapitator 17715 | -2/Protoforge | Destroyed Decapitator 17736 | -2/Protoforge | Found Cep. Rapid Grenade Launcher 17738 | -2/Protoforge | Found Cep. Smart ZDS 17748 | -2/Protoforge | Found Faulty Cep. Tiamat Rocket Array 17750 | -2/Protoforge | Found Faulty Cep. Tactical Fusion Warhead 17754 | -2/Protoforge | Found Cep. Tactical Fusion Warhead 17756 | -2/Protoforge | Found Cep. Tiamat Rocket Array 17757 | -2/Protoforge | Found Cep. Rapid Grenade Launcher 17901 | -2/Protoforge | Found Cep. Helical Railcannon 17909 | -2/Protoforge | Found Exp. Jetlance 17910 | -2/Protoforge | Found Exp. Jetlance 17913 | -2/Protoforge | Found Faulty Cep. Variable Chargecaster 17915 | -2/Protoforge | Found Cep. Variable Chargecaster 17919 | -2/Protoforge | Found Faulty Cep. Variable Chargecaster 18117 | -2/Protoforge | Found Cep. Antimissile System 18124 | -2/Protoforge | Found Exp. Core Analyzer 18130 | -2/Protoforge | Found Prototype Processor 18130 | -2/Protoforge | Identified Exp. Targeting Computer 18147 | -2/Protoforge | Spotted Executioner 18151 | -2/Protoforge | Spotted Executioner 18151 | -2/Protoforge | Spotted Striker 18152 | -2/Protoforge | Spotted Executioner 18156 | -2/Protoforge | Spotted Striker 18158 | -2/Protoforge | Spotted Executioner 18212 | -2/Protoforge | Found Exp. Targeting Computer 18217 | -2/Protoforge | Lost 12 allies 18220 | -2/Protoforge | Found 0bPrime Scrap Suit 18221 | -2/Protoforge | Found 0bPrime Scrap Suit 18333 | -2/Protoforge | Spotted Executioner 18334 | -2/Protoforge | Spotted Executioner 18334 | -2/Protoforge | Spotted Executioner 18384 | -2/Protoforge | Lost 6 allies 18389 | -2/Protoforge | Spotted Executioner 18424 | -2/Protoforge | Spotted Striker 18429 | -2/Protoforge | Destroyed Striker 18429 | -2/Protoforge | Destroyed Executioner 18443 | -2/Protoforge | Spotted Striker 18450 | -2/Protoforge | Destroyed 7 combat bots 18482 | -2/Protoforge | Spotted Executioner 18581 | -2/Protoforge | Lost 4 allies 18596 | -2/Protoforge | Spotted Executioner 18609 | -2/Protoforge | Destroyed Executioner 18709 | -2/Protoforge | Spotted Decapitator 18709 | -2/Protoforge | Spotted Decapitator 18709 | -2/Protoforge | Spotted Decapitator 18709 | -2/Protoforge | Spotted Decapitator 18713 | -2/Protoforge | Destroyed Decapitator 18713 | -2/Protoforge | Destroyed Decapitator 18715 | -2/Protoforge | Destroyed Decapitator 18715 | -2/Protoforge | Destroyed Decapitator 18750 | -2/Protoforge | Found Faulty Cep. Fieldthrust Drive 18753 | -2/Protoforge | Found Faulty Cep. Fieldthrust Drive 18876 | -2/Protoforge | Spotted V166-d 18922 | -2/Protoforge | Spotted Striker 18925 | -2/Protoforge | UFD reported confirmed Drillbomb installation 18986 | -2/Protoforge | Spotted Striker 19039 | -2/Protoforge | Spotted Striker 19122 | -2/Protoforge | Spotted Striker 19122 | -2/Protoforge | Spotted Striker 19124 | -2/Protoforge | Spotted Striker 19125 | -2/Protoforge | Spotted Striker 19205 | -2/Protoforge | Spotted V018-y 19205 | -2/Protoforge | Spotted V864-z 19206 | -2/Protoforge | Spotted Immortal 19235 | -2/Protoforge | Spotted V137-m 19235 | -2/Protoforge | Found Cep. Chromion Battery 19237 | -2/Protoforge | Found Cep. NT7 Matterbank 19238 | -2/Protoforge | Found Cep. Antigrav Storage Unit 19243 | -2/Protoforge | Spotted V375-t 19248 | -2/Protoforge | Found Cep. Matter Streamer 19249 | -2/Protoforge | Found Cep. Matter Streamer 19250 | -2/Protoforge | Found Cep. NT7 Matterbank 19284 | -2/Protoforge | Spotted Striker 19284 | -2/Protoforge | Spotted Executioner 19330 | -2/Protoforge | Spotted Striker 19331 | -2/Protoforge | Spotted Striker 19331 | -2/Protoforge | Spotted Executioner 19424 | -2/Protoforge | Spotted Executioner 19427 | -2/Protoforge | Spotted Executioner 19480 | -2/Protoforge | Spotted Striker 19480 | -2/Protoforge | Spotted Striker 19512 | -2/Protoforge | Lost 5 allies 19517 | -2/Protoforge | Destroyed 02F39-K 19527 | -2/Protoforge | Destroyed 02F40-K 19555 | -2/Protoforge | Destroyed 02F43-K 19574 | -2/Protoforge | Destroyed 02F44-K 19589 | -2/Protoforge | Destroyed 02F41-K 19599 | -2/Protoforge | Destroyed 02F35-K 19613 | -2/Protoforge | Destroyed 02F20-K 19628 | -2/Protoforge | Spotted Striker 19628 | -2/Protoforge | Spotted Executioner 19639 | -2/Protoforge | Murdered 9 allies 19654 | -2/Protoforge | Spotted Striker 19654 | -2/Protoforge | Spotted Executioner 19688 | -2/Protoforge | Lost 3 allies 19767 | -2/Protoforge | Found Cep. RG22 Armor 19768 | -2/Protoforge | Found Exp. Force Field 19769 | -2/Protoforge | Spotted V059-q 19769 | -2/Protoforge | Spotted V806-c 19770 | -2/Protoforge | Found Prototype Device 19771 | -2/Protoforge | Spotted V044-c 19771 | -2/Protoforge | Found Faulty Cep. Reaction Jets 19773 | -2/Protoforge | Found Faulty Cep. Reaction Jets 19776 | -2/Protoforge | Found Cep. Beam Splitter 19813 | -2/Protoforge | Destroyed Executioner 19916 | -2/Protoforge | Spotted Decapitator 19917 | -2/Protoforge | Spotted Decapitator 19918 | -2/Protoforge | Destroyed Decapitator 19921 | -2/Protoforge | Destroyed Decapitator 20008 | -2/Protoforge | Found Cep. Network Penetrator 20016 | -2/Protoforge | Found Exp. Active Sensor Suite 20088 | -2/Protoforge | Additional patrols dispatched to research labs 20092 | -2/Protoforge | Found Transdimensional Reconstructor 20304 | -2/Protoforge | Build established: Scavenger-Scout 20311 | -2/Protoforge | Spotted AP7-3 20356 | -2/Protoforge | Found Cep. Core Analysis Suite 20358 | -2/Protoforge | Found Faulty Cep. Cloak Mesh 20359 | -2/Protoforge | Found Cep. Cloak Mesh 20360 | -2/Protoforge | Found Cep. Thermoelectric Network 20361 | -2/Protoforge | Found Cep. Thermoelectric Network 20447 | -2/Protoforge | UFD reported confirmed Drillbomb installation 20565 | -2/Protoforge | Identified Cep. Phase Shift Module 20638 | -2/Protoforge | UFD reported confirmed Drillbomb installation 20696 | -2/Protoforge | Destroyed 02F60-K 20702 | -2/Protoforge | UFD reported confirmed Drillbomb installation 20707 | -2/Protoforge | Destroyed 02F63-K 20767 | -2/Protoforge | Destroyed 02F58-K 20774 | -2/Protoforge | Spotted Executioner 20815 | -2/Protoforge | Spotted Executioner 20816 | -2/Protoforge | Spotted Striker 20816 | -2/Protoforge | Destroyed 02F64-K 20884 | -2/Protoforge | Spotted Executioner 20884 | -2/Protoforge | Spotted Executioner 20939 | -2/Protoforge | Murdered 14 allies 20943 | -2/Protoforge | Lost 15 allies 21004 | -2/Protoforge | Murdered 4 allies 21004 | -2/Protoforge | Spotted Executioner 21048 | -2/Protoforge | Spotted Striker 21049 | -2/Protoforge | Spotted Executioner 21049 | -2/Protoforge | Spotted Executioner 21101 | -2/Protoforge | Spotted Striker 21115 | -2/Protoforge | Lost 8 allies 21126 | -2/Protoforge | Spotted Striker 21261 | -2/Protoforge | Found 0bPrime Scrap Suit 21282 | -2/Protoforge | Spotted Striker 21284 | -2/Protoforge | Found Exp. Targeting Computer 21286 | -2/Protoforge | Found Exp. Core Analyzer 21287 | -2/Protoforge | Spotted Striker 21304 | -2/Protoforge | Spotted Executioner 21357 | -2/Protoforge | Spotted Executioner 21374 | -2/Protoforge | Spotted Executioner 21397 | -2/Protoforge | Spotted Striker 21397 | -2/Protoforge | Spotted Striker 21432 | -2/Protoforge | Build established: Scavenger-Ninja 21433 | -2/Protoforge | Lost 4 allies 21433 | -2/Protoforge | Spotted Executioner 21526 | -2/Protoforge | Spotted Executioner 21648 | -2/Protoforge | Found Faulty Cep. Zero-point Core 21686 | -2/Protoforge | Found Cep. Zero-point Core 21763 | -2/Protoforge | Found Cep. Plasma Driver 21819 | -2/Protoforge | Found Cep. NT7 Matterbank 22168 | -2/Protoforge | Build established: Scavenger-Assassin 22349 | -2/Protoforge | Spotted Striker 22356 | -2/Protoforge | Destroyed Striker 22370 | -2/Protoforge | Spotted Striker 22392 | -2/Protoforge | Destroyed Striker 22429 | -2/Protoforge | Spotted Striker 22433 | -2/Protoforge | Destroyed Striker 22439 | -2/Protoforge | Spotted Striker 22440 | -2/Protoforge | Destroyed Striker 22540 | -2/Protoforge | Spotted Striker 22654 | -2/Protoforge | Spotted Striker 22673 | -2/Protoforge | Spotted Executioner 22674 | -2/Protoforge | Destroyed Executioner 22675 | -2/Protoforge | Spotted Executioner 22677 | -2/Protoforge | Destroyed Executioner 22704 | -2/Protoforge | Destroyed 8 combat bots 22732 | -2/Protoforge | Spotted Striker 23074 | -2/Protoforge | Spotted Executioner 23075 | -2/Protoforge | Spotted Executioner 23079 | -2/Protoforge | Spotted Executioner 23088 | -2/Protoforge | Destroyed Executioner 23094 | -2/Protoforge | Destroyed Executioner 23117 | -2/Protoforge | Lost 4 allies 23370 | -2/Protoforge | Spotted Striker 23372 | -2/Protoforge | Destroyed Striker 23379 | -2/Protoforge | Spotted Striker 23384 | -2/Protoforge | Destroyed Striker 23411 | -2/Protoforge | UFD reported confirmed Drillbomb installation 23498 | -2/Protoforge | Spotted Executioner 23498 | -2/Protoforge | Spotted Executioner 23515 | -2/Protoforge | Spotted Executioner 23568 | -2/Protoforge | Lost 6 allies 23578 | -2/Protoforge | Spotted Executioner 23586 | -2/Protoforge | Spotted Executioner 23588 | -2/Protoforge | Destroyed Executioner 23592 | -2/Protoforge | Destroyed Striker 23594 | -2/Protoforge | Destroyed Executioner 23598 | -2/Protoforge | Destroyed Executioner 23603 | -2/Protoforge | Destroyed Executioner 23624 | -2/Protoforge | Lost 3 allies 23646 | -2/Protoforge | Destroyed 18 combat bots 23675 | -2/Protoforge | Spotted Striker 23676 | -2/Protoforge | Spotted Striker 23678 | -2/Protoforge | Destroyed Striker 23684 | -2/Protoforge | Spotted Executioner 23687 | -2/Protoforge | Destroyed Executioner 23690 | -2/Protoforge | Spotted Executioner 23694 | -2/Protoforge | Destroyed Executioner 23701 | -2/Protoforge | Spotted Executioner 23705 | -2/Protoforge | Destroyed Executioner 23709 | -2/Protoforge | Spotted Striker 23711 | -2/Protoforge | Destroyed Striker 23762 | -2/Protoforge | Spotted Executioner 23765 | -2/Protoforge | Spotted Executioner 23774 | -2/Protoforge | Spotted Executioner 23785 | -2/Protoforge | Destroyed Executioner 23785 | -2/Protoforge | Destroyed Executioner 23788 | -2/Protoforge | Destroyed Executioner 23801 | -2/Protoforge | Destroyed Executioner 23830 | -2/Protoforge | Destroyed 31 combat bots 23852 | -2/Protoforge | Spotted Executioner 23853 | -2/Protoforge | Destroyed Executioner 23859 | -2/Protoforge | Lost 18 allies 23861 | -2/Protoforge | Spotted Executioner 23861 | -2/Protoforge | Spotted Executioner 23863 | -2/Protoforge | Spotted Striker 23874 | -2/Protoforge | Destroyed Executioner 23876 | -2/Protoforge | Destroyed Executioner 23881 | -2/Protoforge | Destroyed Executioner 23890 | -2/Protoforge | Destroyed Striker 23900 | -2/Protoforge | Spotted Executioner 23908 | -2/Protoforge | Spotted Executioner 23910 | -2/Protoforge | Destroyed Executioner 23931 | -2/Protoforge | Destroyed 14 combat bots 23931 | -2/Protoforge | Lost 3 allies 23962 | -2/Protoforge | Destroyed Striker 23966 | -2/Protoforge | Destroyed Striker 23974 | -2/Protoforge | Destroyed Striker 23974 | -2/Protoforge | Destroyed Striker 24002 | -2/Protoforge | Murdered 3 allies 24028 | -2/Protoforge | Lost 9 allies 24050 | -2/Protoforge | Installed UFD Drillbomb at designated target 24050 | -2/Protoforge | UFD reported confirmed Drillbomb installation 24081 | -2/Protoforge | UFD reported confirmed Drillbomb installation 24093 | -2/Protoforge | Destroyed Executioner 24095 | -2/Protoforge | Lost 9 allies 24101 | -2/Protoforge | Spotted Striker 24108 | -2/Protoforge | Spotted Executioner 24111 | -2/Protoforge | Destroyed Executioner 24140 | -2/Protoforge | Spotted Executioner 24141 | -2/Protoforge | Destroyed Executioner 24151 | -2/Protoforge | Spotted Striker 24153 | -2/Protoforge | Spotted Striker 24160 | -2/Protoforge | Destroyed Striker 24160 | -2/Protoforge | Destroyed Striker 24161 | -2/Protoforge | Spotted Striker 24166 | -2/Protoforge | Destroyed Striker 24177 | -2/Protoforge | Spotted Striker 24178 | -2/Protoforge | Spotted Striker 24191 | -2/Protoforge | Destroyed 14 combat bots 24194 | -2/Protoforge | Destroyed Striker 24197 | -2/Protoforge | Lost 3 allies 24275 | -2/Protoforge | Destroyed Executioner 24278 | -2/Protoforge | Spotted Striker 24280 | -2/Protoforge | Destroyed Executioner 24282 | -2/Protoforge | Destroyed Striker 24284 | -2/Protoforge | Destroyed Executioner 24291 | -2/Protoforge | Spotted Striker 24293 | -2/Protoforge | Destroyed Striker 24299 | -2/Protoforge | Spotted Executioner 24300 | -2/Protoforge | Destroyed Executioner 24321 | -2/Protoforge | Destroyed 14 combat bots 24326 | -2/Protoforge | Lost 13 allies 24353 | -2/Protoforge | Spotted Striker 24353 | -2/Protoforge | Spotted Striker 24355 | -2/Protoforge | Destroyed Striker 24355 | -2/Protoforge | Destroyed Striker 24357 | -2/Protoforge | Destroyed Striker 24372 | -2/Protoforge | Destroyed Striker 24374 | -2/Protoforge | Spotted Executioner 24374 | -2/Protoforge | Destroyed Executioner 24374 | -2/Protoforge | Destroyed Executioner 24389 | -2/Protoforge | Lost 4 allies 24404 | -2/Protoforge | Destroyed 17 combat bots 24453 | -2/Protoforge | Spotted Executioner 24453 | -2/Protoforge | Spotted Executioner 24453 | -2/Protoforge | Spotted Executioner 24454 | -2/Protoforge | Destroyed Executioner 24454 | -2/Protoforge | Destroyed Executioner 24456 | -2/Protoforge | Destroyed Executioner 24475 | -2/Protoforge | Spotted Striker 24475 | -2/Protoforge | Spotted Striker 24477 | -2/Protoforge | Destroyed 8 combat bots 24479 | -2/Protoforge | Destroyed Striker 24485 | -2/Protoforge | Destroyed Striker 24550 | -2/Protoforge | Destroyed Striker 24550 | -2/Protoforge | Destroyed Executioner 24574 | -2/Protoforge | Destroyed 9 combat bots 24574 | -2/Protoforge | Spotted Striker 24574 | -2/Protoforge | Spotted Striker 24608 | -2/Protoforge | Lost 4 allies 24656 | -2/Protoforge | Destroyed Executioner 24656 | -2/Protoforge | Destroyed Striker 24677 | -2/Protoforge | Destroyed 9 combat bots 24705 | -2/Protoforge | Lost 8 allies 24751 | -2/Protoforge | Destroyed Executioner 24753 | -2/Protoforge | Destroyed Executioner 24753 | -2/Protoforge | Destroyed Executioner 24774 | -2/Protoforge | Destroyed 7 combat bots 24783 | -2/Protoforge | Spotted Executioner 24785 | -2/Protoforge | Destroyed Executioner 24818 | -2/Protoforge | Lost 8 allies 24849 | -2/Protoforge | Destroyed Executioner 24851 | -2/Protoforge | Spotted Striker 24851 | -2/Protoforge | Destroyed Striker 24851 | -2/Protoforge | Destroyed Striker 24872 | -2/Protoforge | Destroyed 12 combat bots 24878 | -2/Protoforge | Destroyed Executioner 24880 | -2/Protoforge | Destroyed Executioner 24901 | -2/Protoforge | Destroyed 7 combat bots 24950 | -2/Protoforge | Spotted Striker 24951 | -2/Protoforge | Destroyed Striker 24957 | -2/Protoforge | Spotted Striker 24974 | -2/Protoforge | Destroyed Executioner 24997 | -2/Protoforge | Destroyed 12 combat bots 25009 | -2/Protoforge | Lost 9 allies 25052 | -2/Protoforge | Spotted Executioner 25053 | -2/Protoforge | Destroyed Executioner 25055 | -2/Protoforge | Spotted Striker 25055 | -2/Protoforge | Spotted Executioner 25075 | -2/Protoforge | Spotted Executioner 25075 | -2/Protoforge | Spotted Striker 25075 | -2/Protoforge | Destroyed Executioner 25075 | -2/Protoforge | Destroyed Striker 25089 | -2/Protoforge | UFD reported confirmed Drillbomb installation 25096 | -2/Protoforge | Destroyed 9 combat bots 25154 | -2/Protoforge | Destroyed Striker 25156 | -2/Protoforge | Destroyed Executioner 25174 | -2/Protoforge | Destroyed Striker 25187 | -2/Protoforge | UFD reported confirmed Drillbomb installation 25197 | -2/Protoforge | Destroyed 11 combat bots 25208 | -2/Protoforge | Lost 3 allies 25209 | -2/Protoforge | Spotted Executioner 25213 | -2/Protoforge | Destroyed Executioner 25280 | -2/Protoforge | Spotted Striker 25298 | -2/Protoforge | Lost 6 allies 25352 | -2/Protoforge | Destroyed Striker 25354 | -2/Protoforge | Destroyed Executioner 25354 | -2/Protoforge | Destroyed Executioner 25354 | -2/Protoforge | Destroyed Striker 25383 | -2/Protoforge | Destroyed Striker 25404 | -2/Protoforge | Destroyed 14 combat bots 25412 | -2/Protoforge | Lost 3 allies 25452 | -2/Protoforge | Destroyed Executioner 25454 | -2/Protoforge | Destroyed Executioner 25475 | -2/Protoforge | Destroyed 7 combat bots 25543 | -2/Protoforge | UFD reported confirmed Drillbomb installation 25544 | -2/Protoforge | UFD began Drillbomb countdown 25568 | -2/Protoforge | Entered Access 25568 | -1/Access | Evolved 2 slots: Weapon x2 25818 | -1/Access | First assault squad dispatched 26101 | -1/Access | Build established: Scavenger-Scrapper 26326 | -1/Access | High security lockdown imminent 26406 | -1/Access | High security lockdown engaged 26514 | -1/Access | Destroyed 10 combat bots 26614 | -1/Access | Destroyed Investigator 26637 | -1/Access | Destroyed 29 combat bots 26780 | -1/Access | Destroyed 10 combat bots 26820 | -1/Access | Destroyed 8 combat bots 26863 | -1/Access | Spotted Investigator 26863 | -1/Access | Scanned by Researcher 26864 | -1/Access | Destroyed Investigator 26892 | -1/Access | Destroyed 8 combat bots 26940 | -1/Access | Spotted Investigator 26940 | -1/Access | Destroyed Investigator 26940 | -1/Access | Spotted Executioner 26941 | -1/Access | Destroyed Executioner 26952 | -1/Access | Destroyed Executioner 26952 | -1/Access | Destroyed Striker 26953 | -1/Access | Destroyed Striker 26956 | -1/Access | Destroyed Executioner 26956 | -1/Access | Destroyed Executioner 26973 | -1/Access | Destroyed Executioner 26994 | -1/Access | Destroyed 24 combat bots 27124 | -1/Access | Destroyed Striker 27202 | -1/Access | Destroyed Striker 27207 | -1/Access | Destroyed Striker 27207 | -1/Access | Destroyed Striker 27208 | -1/Access | Spotted Striker 27209 | -1/Access | Destroyed Striker 27210 | -1/Access | Destroyed Striker 27215 | -1/Access | Destroyed Striker 27217 | -1/Access | Destroyed Executioner 27220 | -1/Access | Spotted Striker 27220 | -1/Access | Spotted Striker 27222 | -1/Access | Destroyed Striker 27222 | -1/Access | Destroyed Striker 27243 | -1/Access | Destroyed 21 combat bots 27380 | -1/Access | Destroyed Investigator 27395 | -1/Access | Destroyed Executioner 27395 | -1/Access | Destroyed Executioner 27401 | -1/Access | Destroyed Striker 27411 | -1/Access | Destroyed Executioner 27432 | -1/Access | Destroyed 12 combat bots 27489 | -1/Access | Destroyed Striker 27489 | -1/Access | Spotted Executioner 27489 | -1/Access | Destroyed Executioner 27510 | -1/Access | Destroyed Striker 27511 | -1/Access | Destroyed Striker 27517 | -1/Access | Destroyed Executioner 27518 | -1/Access | Spotted Executioner 27518 | -1/Access | Destroyed Executioner 27539 | -1/Access | Destroyed 22 combat bots 27625 | -1/Access | Found Prototype Launcher 27705 | -1/Access | Spotted Executioner 27705 | -1/Access | Destroyed Executioner 27732 | -1/Access | Destroyed Executioner 27732 | -1/Access | Spotted Executioner 27732 | -1/Access | Destroyed Executioner 27751 | -1/Access | Destroyed Executioner 27751 | -1/Access | Spotted Striker 27751 | -1/Access | Destroyed Striker 27774 | -1/Access | Destroyed 7 combat bots 27812 | -1/Access | Destroyed Executioner 27812 | -1/Access | Spotted Striker 27812 | -1/Access | Destroyed Striker 27860 | -1/Access | Destroyed Executioner 27860 | -1/Access | Spotted Striker 27860 | -1/Access | Destroyed Striker 27907 | -1/Access | Destroyed 17 combat bots 28021 | -1/Access | Spotted Striker 28022 | -1/Access | Destroyed Striker 28031 | -1/Access | Destroyed Striker 28031 | -1/Access | Destroyed Executioner 28034 | -1/Access | Destroyed Striker 28040 | -1/Access | Spotted Striker 28041 | -1/Access | Destroyed Striker 28072 | -1/Access | Destroyed 31 combat bots 28234 | -1/Access | Destroyed Executioner 28234 | -1/Access | Destroyed Executioner 28235 | -1/Access | Destroyed Executioner 28237 | -1/Access | Spotted Striker 28238 | -1/Access | Destroyed Striker 28238 | -1/Access | Destroyed Executioner 28262 | -1/Access | Destroyed Executioner 28283 | -1/Access | Destroyed 14 combat bots 28440 | -1/Access | Spotted Executioner 28440 | -1/Access | Destroyed Executioner 28445 | -1/Access | Sterilization system engaged 28448 | -1/Access | Spotted Striker 28448 | -1/Access | Spotted Executioner 28449 | -1/Access | Destroyed Striker 28449 | -1/Access | Destroyed Executioner 28451 | -1/Access | Destroyed Executioner 28451 | -1/Access | Destroyed Striker 28452 | -1/Access | Destroyed Striker 28458 | -1/Access | Destroyed Executioner 28459 | -1/Access | Destroyed Executioner 28460 | -1/Access | Destroyed Executioner 28484 | -1/Access | Destroyed 29 combat bots 28490 | -1/Access | Destroyed Executioner 28745 | -1/Access | Ambient heat levels rising (+10) 28895 | -1/Access | Ambient heat levels rising (+10) 28897 | -1/Access | Found Unknown Protection 28897 | -1/Access | Identified Imp. Powered Armor 29045 | -1/Access | Ambient heat levels rising (+10) 29195 | -1/Access | Ambient heat levels rising (+10) 29345 | -1/Access | Ambient heat levels rising (+10) 29495 | -1/Access | Ambient heat levels rising (+10) 29629 | -1/Access | Spotted B-99 Colossus 29630 | -1/Access | Destroyed B-99 Colossus 29645 | -1/Access | Ambient heat levels rising (+10) 29795 | -1/Access | Ambient heat levels rising (+10) 29945 | -1/Access | Ambient heat levels rising (+10) 30095 | -1/Access | Ambient heat levels rising (+10) 30245 | -1/Access | Ambient heat levels rising (+10) 30367 | -1/Access | Discovered new exit (range 8) 30395 | -1/Access | Ambient heat levels rising (+10) 30545 | -1/Access | Ambient heat levels rising (+10) 30695 | -1/Access | Ambient heat levels rising (+10) 30845 | -1/Access | Ambient heat levels rising (+10) 30995 | -1/Access | Ambient heat levels rising (+10) 31145 | -1/Access | Ambient heat levels rising (+10) 31295 | -1/Access | Ambient heat levels rising (+10) 31445 | -1/Access | Ambient heat levels rising (+10) 31595 | -1/Access | Ambient heat levels rising (+10) 31745 | -1/Access | Ambient heat levels rising (+10) 31837 | -1/Access | Energy Cycler disabled 31895 | -1/Access | Ambient heat levels rising (+10) 32045 | -1/Access | Ambient heat levels rising (+10) 32195 | -1/Access | Ambient heat levels rising (+10) 32345 | -1/Access | Ambient heat levels rising (+10) 32495 | -1/Access | Ambient heat levels rising (+10) 32645 | -1/Access | Ambient heat levels rising (+10) 32656 | -1/Access | Discovered new exit (range 10) 32736 | -1/Access | Entered Command 32986 | -1/Command | First assault squad dispatched 33588 | -1/Command | High security lockdown imminent 33668 | -1/Command | High security lockdown engaged 33850 | -1/Command | Destroyed 27 combat bots 33901 | -1/Command | Spotted Investigator 33901 | -1/Command | Destroyed Investigator 33946 | -1/Command | Destroyed 27 combat bots 34079 | -1/Command | Destroyed 19 combat bots 34255 | -1/Command | Spotted Striker 34255 | -1/Command | Destroyed Striker 34265 | -1/Command | Spotted Executioner 34265 | -1/Command | Destroyed Executioner 34266 | -1/Command | Spotted Striker 34267 | -1/Command | Destroyed Striker 34295 | -1/Command | Destroyed 17 combat bots 34341 | -1/Command | Destroyed Executioner 34362 | -1/Command | Destroyed 8 combat bots 34506 | -1/Command | Destroyed Executioner 34512 | -1/Command | Spotted Striker 34512 | -1/Command | Destroyed Executioner 34512 | -1/Command | Destroyed Striker 34512 | -1/Command | Destroyed Striker 34513 | -1/Command | Destroyed Executioner 34520 | -1/Command | Destroyed Striker 34526 | -1/Command | Destroyed Executioner 34526 | -1/Command | Spotted Striker 34526 | -1/Command | Spotted Striker 34526 | -1/Command | Spotted Executioner 34527 | -1/Command | Spotted Striker 34528 | -1/Command | Destroyed Striker 34528 | -1/Command | Destroyed Executioner 34528 | -1/Command | Destroyed Striker 34528 | -1/Command | Destroyed Striker 34528 | -1/Command | Destroyed Striker 34550 | -1/Command | Destroyed 23 combat bots 34553 | -1/Command | Destroyed Striker 34734 | -1/Command | Spotted Executioner 34735 | -1/Command | Destroyed Executioner 34737 | -1/Command | Spotted Executioner 34737 | -1/Command | Destroyed Executioner 35270 | -1/Command | Found Exp. Targeting Computer 35488 | -1/Command | Spotted B-99 Colossus 35490 | -1/Command | Destroyed B-99 Colossus 35503 | -1/Command | Found Prototype Ballistic Gun 35589 | -1/Command | Spotted B-99 Colossus 35591 | -1/Command | Destroyed B-99 Colossus 35614 | -1/Command | Found Prototype Ballistic Gun 35795 | -1/Command | Phase Generator disabled 40231 | -1/Command | Spotted Combat Programmer 40231 | -1/Command | Spotted Combat Programmer 40233 | -1/Command | Spotted M Guard 40233 | -1/Command | Destroyed Combat Programmer 40234 | -1/Command | Spotted M Guard 40236 | -1/Command | Destroyed Combat Programmer 40236 | -1/Command | Destroyed M Guard 40242 | -1/Command | Destroyed M Guard 40242 | -1/Command | All MAIN.C guards destroyed 40278 | -1/Command | Found Prototype Device 40278 | -1/Command | Identified AEGIS Remote Shield 40283 | -1/Command | Found AEGIS Remote Shield 42333 | -1/Command | Destroyed 57 combat bots 44609 | -1/Command | Destroyed B-99 Colossus 44628 | -1/Command | Spotted Executioner 44629 | -1/Command | Destroyed Executioner 44629 | -1/Command | Spotted Executioner 44631 | -1/Command | Destroyed Executioner 44662 | -1/Command | Spotted B-99 Colossus 44664 | -1/Command | Destroyed B-99 Colossus 44792 | -1/Command | Destroyed Striker 44797 | -1/Command | Spotted Striker 44797 | -1/Command | Destroyed Striker 44805 | -1/Command | Spotted Executioner 44807 | -1/Command | Spotted Alpha 7 44807 | -1/Command | Destroyed Executioner 44809 | -1/Command | Destroyed Alpha 7 44870 | -1/Command | Spotted Alpha 7 44870 | -1/Command | Destroyed Alpha 7 44871 | -1/Command | Spotted Executioner 44872 | -1/Command | Destroyed Executioner 44927 | -1/Command | Discovered new exit (range 8) 44947 | -1/Command | Found Prototype Ballistic Gun 44947 | -1/Command | Identified Multirail (x3) 45707 | -1/Command | Destroyed 32 combat bots 46498 | -1/Command | Destroyed 11 combat bots 46838 | -1/Command | Destroyed 14 combat bots 47112 | -1/Command | Destroyed 17 combat bots 47226 | -1/Command | Destroyed 7 combat bots 47303 | -1/Command | Destroyed 7 combat bots 47568 | -1/Command | Destroyed 25 combat bots 47616 | -1/Command | Destroyed 11 combat bots 47717 | -1/Command | Destroyed 12 combat bots 48048 | -1/Command | Destroyed 7 combat bots 48079 | -1/Command | Destroyed 13 combat bots 48445 | -1/Command | Destroyed 65 combat bots 49650 | -1/Command | Found Exp. Targeting Computer 49664 | -1/Command | Found Prototype Protection 49806 | -1/Command | Met MAIN.C 49808 | -1/Command | 0b10 Conduit disabled 49811 | -1/Command | Destroyed MAIN.C Shell 49812 | -1/Command | MAIN.C activated Command garrisons 49813 | -1/Command | Destroyed MAIN.C 49832 | -1/Command | Identified Hvy. Regenerative Plating 49832 | -1/Command | Identified Containment Facilitator 49832 | -1/Command | Discovered new exit (range 51) 49832 | -1/Command | Discovered new exit (range 95) 49832 | -1/Command | Extracted map data and part IDs from MAIN.C's data core 49858 | -1/Command | Spotted Executioner 49860 | -1/Command | Destroyed Executioner 49860 | -1/Command | Spotted Executioner 49861 | -1/Command | Destroyed Executioner 49904 | -1/Command | Destroyed 9 combat bots 51068 | -1/Command | Found Exp. Targeting Computer 51072 | -1/Command | Found Exp. Targeting Computer 51222 | -1/Command | Build established: Scavenger-Gunner 51626 | -1/Command | Build established: Scavenger-Executioner 52280 | -1/Command | Found Centrium Heavy Armor Plating 52289 | -1/Command | Found Zero-point Reactor 52649 | -1/Command | Found Zero-point Reactor 52749 | -1/Command | Found Cld. Nova Cannon 53293 | -1/Command | Warped through subspace to slip node 53293 | -1/Command | Discovered new exit (range 5) 53300 | -1/Command | Entered Access_0 53303 | -1/Access_0 | Met Architect 53306 | -1/Access_0 | Architect warped through subspace 53321 | -1/Access_0 | Destroyed A8 53363 | -1/Access_0 | Architect warped through subspace 53413 | -1/Access_0 | Architect warped through subspace 53455 | -1/Access_0 | Architect warped through subspace 53483 | -1/Access_0 | Subspace Access Node disabled 53501 | -1/Access_0 | Architect warped through subspace 53534 | -1/Access_0 | Architect warped through subspace 53559 | -1/Access_0 | Architect warped through subspace 53572 | -1/Access_0 | Architect warped through subspace 53584 | -1/Access_0 | Architect warped through subspace 53588 | -1/Access_0 | A6 warped into view 53602 | -1/Access_0 | Destroyed A6 53606 | -1/Access_0 | Architect warped through subspace 53616 | -1/Access_0 | Architect warped through subspace 53630 | -1/Access_0 | Architect warped through subspace 53645 | -1/Access_0 | Architect warped through subspace 53682 | -1/Access_0 | Architect warped through subspace 53684 | -1/Access_0 | Subspace Access Node disabled 53693 | -1/Access_0 | Architect warped through subspace 53718 | -1/Access_0 | Architect warped through subspace 53744 | -1/Access_0 | Architect warped through subspace 53765 | -1/Access_0 | Architect warped through subspace 53796 | -1/Access_0 | Architect warped through subspace 53832 | -1/Access_0 | Architect warped through subspace 53860 | -1/Access_0 | Architect warped through subspace 53888 | -1/Access_0 | Architect warped through subspace 53908 | -1/Access_0 | Architect warped through subspace 53925 | -1/Access_0 | Architect warped through subspace 53944 | -1/Access_0 | Architect warped through subspace 53962 | -1/Access_0 | Core integrity fell below 50% 53963 | -1/Access_0 | Architect warped through subspace 53982 | -1/Access_0 | Architect warped through subspace 53989 | -1/Access_0 | Found Exp. Weapon Cycler 54000 | -1/Access_0 | Architect warped through subspace 54021 | -1/Access_0 | Architect warped through subspace 54042 | -1/Access_0 | Subspace Access Node disabled 54049 | -1/Access_0 | Architect warped through subspace 54073 | -1/Access_0 | Architect warped through subspace 54110 | -1/Access_0 | Architect warped through subspace 54136 | -1/Access_0 | Architect warped through subspace 54159 | -1/Access_0 | Architect warped through subspace 54196 | -1/Access_0 | Architect warped through subspace 54215 | -1/Access_0 | Architect warped through subspace 54231 | -1/Access_0 | Architect warped through subspace 54243 | -1/Access_0 | Architect warped through subspace 54247 | -1/Access_0 | Subspace Access Node disabled 54272 | -1/Access_0 | Destroyed Architect 54273 | -1/Access_0 | Architect triggered a singularity event 54274 | -1/Access_0 | Released all parts (25) 54274 | -1/Access_0 | Extracted unknown sensor trigger ID from Architect's data core 54275 | -1/Access_0 | Found Hpw. Transdimensional Reconstructor 54275 | -1/Access_0 | Warped through subspace to slip node 54275 | -1/Access_0 | Discovered new exit (range 8) 54279 | *** | Escaped singularity! Last Messages --------------- 54274_ Hvy. Regenerative Plating crushed and broken. 54274_ Released Enh. Nova Cannon. 54274_ Enh. Nova Cannon crushed and broken. 54274_ Released Exp. Biometal Leg. 54274_ Exp. Biometal Leg crushed and broken. 54274_ Released Cep. Plasma Driver. 54274_ Cep. Plasma Driver crushed and broken. 54274_ Acquired data core, extracted unknown sensor trigger ID. 54275_ A0_COM: 9. 54275_ Acquired Hpw. Transdimensional Reconstructor. 54275_ Warped through subspace, drawn to slip node. 54275_ EXIT=FOUND 54276_ A0_COM: 8. 54277_ A0_COM: 7. 54278_ A0_COM: 6. 54279_ A0_COM: 5. Map ----- +----------------------------------------------------+ | | | | | | | | | | | | | | | | | | | | | | | | | | | | | | | | | ?????????????????????????????????????????????????? | | ?????????????????????????????????????????????????? | | ?????????????????????????????????????????????????? | | ?????????????????????????????????????????????????? | | ?????????????????????????????????????????????????? | | ?????????????????????????????????????????????????? | | ????????????????????????###??????????????????????? | | ???????????????????????## ##?????????????????????? | | ???????????????????????# #?????????????????????? | | ???????????????????????# @ #?????????????????????? | | ??????????????????????## #?????????????????????? | | ??????????????????????# #?????????????????????? | | ??????????????????????# ##?????????????????????? | | ??????????????????????## #?????????????????????? | | ??????????????????????# #?????????????????????? | | ??????????????????????# ##?????????????????????? | | ??????????????????????# < #?????????????????????? | | ??????????????????????# ##?????????????????????? | | ??????????????????????## #??????????????????????? | | ???????????????????????####??????????????????????? | | ?????????????????????????????????????????????????? | | ?????????????????????????????????????????????????? | | ?????????????????????????????????????????????????? | | ?????????????????????????????????????????????????? | | ?????????????????????????????????????????????????? | | ?????????????????????????????????????????????????? | | ?????????????????????????????????????????????????? | | ?????????????????????????????????????????????????? | | ?????????????????????????????????????????????????? | | ?????????????????????????????????????????????????? | | ?????????????????????????????????????????????????? | | ?????????????????????????????????????????????????? | | ?????????????????????????????????????????????????? | | ?????????????????????????????????????????????????? | +----------------------------------------------------+ Best States ------------- Heat Dissipation 152 Coolant Potential 120 Energy Generation 55 Energy Capacity 2700 Matter Stores 1050 Matter Capacity 1050 Sight Range 23 Robot Scan Range 20 Terrain Scan Density 10 ECM Strength 1 Jamming Range 14 Cloak Strength 6 Additional Mass Support 12 Armor Coverage 800 Weapon Shielding 90 Point Defense Rating 480 Weapon Cycling 30 Evasion (%) 83 Targeting Accuracy 36 Target Analysis 6 Core Analysis 11 Recoil Reduction 6 Salvage Targeting 4 Offensive Hacking 32 Defensive Hacking 10 Authchip Count 2 Item Schematics ----------------- Deep Structural Scanner | -5/Factory | Extrapolated 0b10 Decoder Chip [Skirmisher] | -5/Factory | Extrapolated Battle Rifle | -5/Factory | Extrapolated Mak. Hacking Suite | -5/Factory | Extrapolated Mak. Terrain Scanner | -5/Factory | Extrapolated Mak. Coolant Network | -5/Factory | Extrapolated Mak. Transmission Jammer | -5/Factory | Extrapolated Humpback | -5/Factory | Extrapolated Mak. Medium Armor Plating | -5/Factory | Extrapolated Mak. Thermal Plating | -5/Factory | Extrapolated Mak. Hover Unit | -5/Factory | Extrapolated Cld. VTOL Module | -5/Factory | Hacked Mak. Ablative Armor | -5/Factory | Extrapolated Assault Drone Bay | -5/Zhirov | Free Exp. Heat Sink | -5/Zhirov | Free Exp. Optical Array | -5/Zhirov | Free Imp. Arc Thrower | -5/Zhirov | Free Lrn. Phase Cannon | -2/Testing | Archive Exp. EM Disruption Field | -2/Testing | Archive Imp. Matter Neutralizer | -2/Testing | Archive Tactical Quantum Warhead | -2/Testing | Archive Hvy. Dispersion Rifle | -2/Protoforge | Archive Enh. Biometal Leg | -2/Protoforge | Archive Shock Maul | -2/Protoforge | Archive Imp. Quantum Reactor | -2/Protoforge | Archive Hvy. Neutron Cannon | -2/Protoforge | Archive Centrium Heavy Armor Plating | -2/Protoforge | Archive Com. Tesla Bomb Launcher | -2/Protoforge | Archive Spectral Analyzer | -2/Protoforge | Archive Centrium Heavy Treads | -2/Protoforge | Archive Prc. Matter Filter | -2/Protoforge | Archive Cld. Q-thruster | -2/Protoforge | Archive Robot Schematics ------------------ T-07 Excavator | -2/Protoforge | Archive R-06 Scavenger | -2/Protoforge | Archive S-43 Plague | -2/Protoforge | Archive A-02 Transporter | -2/Protoforge | Archive Fabricated ------------ Deep Structural Scanner | x1 | -5/Factory | Authchip Cld. VTOL Module | x1 | -5/Factory | Authchip Cld. VTOL Module | x1 | -4/Factory | Authchip Repaired ---------- Nuclear Pulse Array | 56% | -5/Factory Impulse Thruster Array | 17% | -4/Factory Cld. Field Propulsion Drive | 72% | -4/Extension Centrium Medium Armor Plating | 71% | -3/Research Mni. Smartbomb Launcher | 26% | -3/Quarantine Alien Tech Used ----------------- Core Expander Integrated Reactor Subatomic Replicator Sigix Broadsword Dimensional Node Initializer Supercharged TR Transdimensional Reconstructor High-powered Transdimensional Reconstructor Achievements -------------- None Challenges ------------ None Game ------ Seed ServoRainbowHarness Manual? 0 Play Time 09:39:50 Cumulative 1203.6 hours Start 2025.06.21 @ 13:52:48 End 2025.06.22 @ 13:24:44 Sessions 3 Manual Loads 0 Difficulty Rogue Special Mode None Game No. 534 Rogue 533 Adventurer 1 Explorer 0 Win Type 6 Total 193 Types 56/16/30/5/2/1/76/3/2/2 Lore% 98 Gallery% 99 Achievement% 94 Wizard Run 0 Options --------- Layout 2 ASCII 0 Keyboard 1 Movement Numpad Keybinds 0 Fullscreen 0 Font 24/Terminus Map View 50x44 Zoom Use 0% Tactical HUD 1 Map Filters NONE Filters NONE Steam 1 RUN: 05252f22-38f5-46fc-ab97-5e89d3b8254a